Workbook

Sheet FA
F1: Feuille de Match 2025 | Z1: FALSE
E3: Ragond1 | F3: Lieu
F4: 2025-11-13
A5: Ligue | B5: PROVENCE ALPES COTE D AZUR | E5: 2025-11-13 | F5: A utiliser à partir du 13 Novembre 2025 | O5: Compétition | Q5: Open de vvv - Ne pas fusionner les cellules
A6: 2025-11-13
A7: Licen. | B7: CLUB | C7: S F-M | D7: Date nais. | E7: Cat. d'âge A | F7: NOM | G7: Prénom | H7: Poids de corps | I7: Cat. Poids | J7: Indice | K7: Lot. | M7: SQUAT | P7: DC | R7: S de T | U7: TOTAL annoncé | V7: TOTAL réalisé | W7: Clas. | X7: Points Réalisés | Y7: Niveau Cat. Âge A | Z7: Niveau Open | AA7: choix discipline | AC7: Cat. d'âge A+1 | AD7: Niveau Cat. Âge A+1 | AE7: hauteur SQUAT | AF7: Position Rack | AG7: hauteur DC | AH7: hauteur sécurité | AI7: Hauteur de cales
L8: 1 | M8: 2 | N8: 3 | O8: 1 | P8: 2 | Q8: 3 | R8: 1 | S8: 2 | T8: 3
E9: =IF(EXACT(C9,"M"),calcul_age(AA9,D9),IF(EXACT(C9,"F"),calcul_age(AA9,D9),"")) ->  | I9: =IF(EXACT(C9,"M"),categorie_poids_homme(AA9,E9,H9),IF(EXACT(C9,"F"),categorie_poids_femme(AA9,E9,H9),"")) ->  | J9: =IF(H9="","",ROUNDUP(IF(EXACT(C9,"M"),IF(AA9="FA",indice_homme_FA(H9),indice_homme_PL(H9)),IF(EXACT(C9,"F"),IF(AA9="PL",indice_femme_PL(H9),indice_femme_FA(H9)),0)),6)) ->  | U9: =IF(AND(L9="",M9="",N9="",O9="",P9="",Q9="",R9="",S9="",T9=""),"",total_annonce(L9,M9,N9,O9,P9,Q9,R9,S9,T9)) ->  | V9: =IF(AND(L9="",M9="",N9="",O9="",P9="",Q9="",R9="",S9="",T9=""),"",total_réussi(L9,M9,N9,O9,P9,Q9,R9,S9,T9)) ->  | X9: =IF(AA9=0,"",IF(AA9="FA",IF(H9="","",ROUNDUP(IF(EXACT(C9,"M"),indice_homme_FA(H9)*total_réussi(L9,M9,N9,O9,P9,Q9,R9,S9,T9),IF(EXACT(C9,"F"),indice_femme_FA(H9)*total_réussi(L9,M9,N9,O9,P9,Q9,R9,S9,T9),0)),6)),IF(H9="","",ROUNDUP(IF(EXACT(C9,"M"),indice_homme_PL(H9)*total_réussi(L9,M9,N9,O9,P9,Q9,R9,S9,T9),IF(EXACT(C9,"F"),indice_femme_PL(H9)*total_réussi(L9,M9,N9,O9,P9,Q9,R9,S9,T9),0)),6)))) ->  | Y9: =IF(U9="","",IF(EXACT(C9,"M"),niv_homme(AA9,E9,H9,V9),IF(EXACT(C9,"F"),niv_femme(AA9,E9,H9,V9)," "))) ->  | Z9: =IF(U9="","",IF(EXACT(C9,"M"),niv_open_homme(AA9,E9,H9,V9),IF(EXACT(C9,"F"),niv_open_femme(AA9,E9,H9,V9)," "))) ->  | AA9: FA | AC9: =IF(EXACT(C9,"M"),calcul_age_A1(AA9,D9),IF(EXACT(C9,"F"),calcul_age_A1(AA9,D9),"")) ->  | AD9: =IF(V9="","",IF(EXACT(C9,"M"),niv_homme(AA9,AC9,H9,V9),IF(EXACT(C9,"F"),niv_femme(AA9,AC9,H9,V9)))) -> 
E10: =IF(EXACT(C10,"M"),calcul_age(AA10,D10),IF(EXACT(C10,"F"),calcul_age(AA10,D10),"")) ->  | I10: =IF(EXACT(C10,"M"),categorie_poids_homme(AA10,E10,H10),IF(EXACT(C10,"F"),categorie_poids_femme(AA10,E10,H10),"")) ->  | J10: =IF(H10="","",ROUNDUP(IF(EXACT(C10,"M"),IF(AA10="FA",indice_homme_FA(H10),indice_homme_PL(H10)),IF(EXACT(C10,"F"),IF(AA10="PL",indice_femme_PL(H10),indice_femme_FA(H10)),0)),6)) ->  | U10: =IF(AND(L10="",M10="",N10="",O10="",P10="",Q10="",R10="",S10="",T10=""),"",total_annonce(L10,M10,N10,O10,P10,Q10,R10,S10,T10)) ->  | V10: =IF(AND(L10="",M10="",N10="",O10="",P10="",Q10="",R10="",S10="",T10=""),"",total_réussi(L10,M10,N10,O10,P10,Q10,R10,S10,T10)) ->  | X10: =IF(AA10=0,"",IF(AA10="FA",IF(H10="","",ROUNDUP(IF(EXACT(C10,"M"),indice_homme_FA(H10)*total_réussi(L10,M10,N10,O10,P10,Q10,R10,S10,T10),IF(EXACT(C10,"F"),indice_femme_FA(H10)*total_réussi(L10,M10,N10,O10,P10,Q10,R10,S10,T10),0)),6)),IF(H10="","",ROUNDUP(IF(EXACT(C10,"M"),indice_homme_PL(H10)*total_réussi(L10,M10,N10,O10,P10,Q10,R10,S10,T10),IF(EXACT(C10,"F"),indice_femme_PL(H10)*total_réussi(L10,M10,N10,O10,P10,Q10,R10,S10,T10),0)),6)))) ->  | Y10: =IF(U10="","",IF(EXACT(C10,"M"),niv_homme(AA10,E10,H10,V10),IF(EXACT(C10,"F"),niv_femme(AA10,E10,H10,V10)," "))) ->  | Z10: =IF(U10="","",IF(EXACT(C10,"M"),niv_open_homme(AA10,E10,H10,V10),IF(EXACT(C10,"F"),niv_open_femme(AA10,E10,H10,V10)," "))) ->  | AA10: FA | AC10: =IF(EXACT(C10,"M"),calcul_age_A1(AA10,D10),IF(EXACT(C10,"F"),calcul_age_A1(AA10,D10),"")) ->  | AD10: =IF(V10="","",IF(EXACT(C10,"M"),niv_homme(AA10,AC10,H10,V10),IF(EXACT(C10,"F"),niv_femme(AA10,AC10,H10,V10)))) -> 
E11: =IF(EXACT(C11,"M"),calcul_age(AA11,D11),IF(EXACT(C11,"F"),calcul_age(AA11,D11),"")) ->  | I11: =IF(EXACT(C11,"M"),categorie_poids_homme(AA11,E11,H11),IF(EXACT(C11,"F"),categorie_poids_femme(AA11,E11,H11),"")) ->  | J11: =IF(H11="","",ROUNDUP(IF(EXACT(C11,"M"),IF(AA11="FA",indice_homme_FA(H11),indice_homme_PL(H11)),IF(EXACT(C11,"F"),IF(AA11="PL",indice_femme_PL(H11),indice_femme_FA(H11)),0)),6)) ->  | U11: =IF(AND(L11="",M11="",N11="",O11="",P11="",Q11="",R11="",S11="",T11=""),"",total_annonce(L11,M11,N11,O11,P11,Q11,R11,S11,T11)) ->  | V11: =IF(AND(L11="",M11="",N11="",O11="",P11="",Q11="",R11="",S11="",T11=""),"",total_réussi(L11,M11,N11,O11,P11,Q11,R11,S11,T11)) ->  | X11: =IF(AA11=0,"",IF(AA11="FA",IF(H11="","",ROUNDUP(IF(EXACT(C11,"M"),indice_homme_FA(H11)*total_réussi(L11,M11,N11,O11,P11,Q11,R11,S11,T11),IF(EXACT(C11,"F"),indice_femme_FA(H11)*total_réussi(L11,M11,N11,O11,P11,Q11,R11,S11,T11),0)),6)),IF(H11="","",ROUNDUP(IF(EXACT(C11,"M"),indice_homme_PL(H11)*total_réussi(L11,M11,N11,O11,P11,Q11,R11,S11,T11),IF(EXACT(C11,"F"),indice_femme_PL(H11)*total_réussi(L11,M11,N11,O11,P11,Q11,R11,S11,T11),0)),6)))) ->  | Y11: =IF(U11="","",IF(EXACT(C11,"M"),niv_homme(AA11,E11,H11,V11),IF(EXACT(C11,"F"),niv_femme(AA11,E11,H11,V11)," "))) ->  | Z11: =IF(U11="","",IF(EXACT(C11,"M"),niv_open_homme(AA11,E11,H11,V11),IF(EXACT(C11,"F"),niv_open_femme(AA11,E11,H11,V11)," "))) ->  | AA11: FA | AC11: =IF(EXACT(C11,"M"),calcul_age_A1(AA11,D11),IF(EXACT(C11,"F"),calcul_age_A1(AA11,D11),"")) ->  | AD11: =IF(V11="","",IF(EXACT(C11,"M"),niv_homme(AA11,AC11,H11,V11),IF(EXACT(C11,"F"),niv_femme(AA11,AC11,H11,V11)))) -> 
E12: =IF(EXACT(C12,"M"),calcul_age(AA12,D12),IF(EXACT(C12,"F"),calcul_age(AA12,D12),"")) ->  | I12: =IF(EXACT(C12,"M"),categorie_poids_homme(AA12,E12,H12),IF(EXACT(C12,"F"),categorie_poids_femme(AA12,E12,H12),"")) ->  | J12: =IF(H12="","",ROUNDUP(IF(EXACT(C12,"M"),IF(AA12="FA",indice_homme_FA(H12),indice_homme_PL(H12)),IF(EXACT(C12,"F"),IF(AA12="PL",indice_femme_PL(H12),indice_femme_FA(H12)),0)),6)) ->  | U12: =IF(AND(L12="",M12="",N12="",O12="",P12="",Q12="",R12="",S12="",T12=""),"",total_annonce(L12,M12,N12,O12,P12,Q12,R12,S12,T12)) ->  | V12: =IF(AND(L12="",M12="",N12="",O12="",P12="",Q12="",R12="",S12="",T12=""),"",total_réussi(L12,M12,N12,O12,P12,Q12,R12,S12,T12)) ->  | X12: =IF(AA12=0,"",IF(AA12="FA",IF(H12="","",ROUNDUP(IF(EXACT(C12,"M"),indice_homme_FA(H12)*total_réussi(L12,M12,N12,O12,P12,Q12,R12,S12,T12),IF(EXACT(C12,"F"),indice_femme_FA(H12)*total_réussi(L12,M12,N12,O12,P12,Q12,R12,S12,T12),0)),6)),IF(H12="","",ROUNDUP(IF(EXACT(C12,"M"),indice_homme_PL(H12)*total_réussi(L12,M12,N12,O12,P12,Q12,R12,S12,T12),IF(EXACT(C12,"F"),indice_femme_PL(H12)*total_réussi(L12,M12,N12,O12,P12,Q12,R12,S12,T12),0)),6)))) ->  | Y12: =IF(U12="","",IF(EXACT(C12,"M"),niv_homme(AA12,E12,H12,V12),IF(EXACT(C12,"F"),niv_femme(AA12,E12,H12,V12)," "))) ->  | Z12: =IF(U12="","",IF(EXACT(C12,"M"),niv_open_homme(AA12,E12,H12,V12),IF(EXACT(C12,"F"),niv_open_femme(AA12,E12,H12,V12)," "))) ->  | AA12: FA | AC12: =IF(EXACT(C12,"M"),calcul_age_A1(AA12,D12),IF(EXACT(C12,"F"),calcul_age_A1(AA12,D12),"")) ->  | AD12: =IF(V12="","",IF(EXACT(C12,"M"),niv_homme(AA12,AC12,H12,V12),IF(EXACT(C12,"F"),niv_femme(AA12,AC12,H12,V12)))) -> 
E13: =IF(EXACT(C13,"M"),calcul_age(AA13,D13),IF(EXACT(C13,"F"),calcul_age(AA13,D13),"")) ->  | I13: =IF(EXACT(C13,"M"),categorie_poids_homme(AA13,E13,H13),IF(EXACT(C13,"F"),categorie_poids_femme(AA13,E13,H13),"")) ->  | J13: =IF(H13="","",ROUNDUP(IF(EXACT(C13,"M"),IF(AA13="FA",indice_homme_FA(H13),indice_homme_PL(H13)),IF(EXACT(C13,"F"),IF(AA13="PL",indice_femme_PL(H13),indice_femme_FA(H13)),0)),6)) ->  | U13: =IF(AND(L13="",M13="",N13="",O13="",P13="",Q13="",R13="",S13="",T13=""),"",total_annonce(L13,M13,N13,O13,P13,Q13,R13,S13,T13)) ->  | V13: =IF(AND(L13="",M13="",N13="",O13="",P13="",Q13="",R13="",S13="",T13=""),"",total_réussi(L13,M13,N13,O13,P13,Q13,R13,S13,T13)) ->  | X13: =IF(AA13=0,"",IF(AA13="FA",IF(H13="","",ROUNDUP(IF(EXACT(C13,"M"),indice_homme_FA(H13)*total_réussi(L13,M13,N13,O13,P13,Q13,R13,S13,T13),IF(EXACT(C13,"F"),indice_femme_FA(H13)*total_réussi(L13,M13,N13,O13,P13,Q13,R13,S13,T13),0)),6)),IF(H13="","",ROUNDUP(IF(EXACT(C13,"M"),indice_homme_PL(H13)*total_réussi(L13,M13,N13,O13,P13,Q13,R13,S13,T13),IF(EXACT(C13,"F"),indice_femme_PL(H13)*total_réussi(L13,M13,N13,O13,P13,Q13,R13,S13,T13),0)),6)))) ->  | Y13: =IF(U13="","",IF(EXACT(C13,"M"),niv_homme(AA13,E13,H13,V13),IF(EXACT(C13,"F"),niv_femme(AA13,E13,H13,V13)," "))) ->  | Z13: =IF(U13="","",IF(EXACT(C13,"M"),niv_open_homme(AA13,E13,H13,V13),IF(EXACT(C13,"F"),niv_open_femme(AA13,E13,H13,V13)," "))) ->  | AA13: FA | AC13: =IF(EXACT(C13,"M"),calcul_age_A1(AA13,D13),IF(EXACT(C13,"F"),calcul_age_A1(AA13,D13),"")) ->  | AD13: =IF(V13="","",IF(EXACT(C13,"M"),niv_homme(AA13,AC13,H13,V13),IF(EXACT(C13,"F"),niv_femme(AA13,AC13,H13,V13)))) -> 
E14: =IF(EXACT(C14,"M"),calcul_age(AA14,D14),IF(EXACT(C14,"F"),calcul_age(AA14,D14),"")) ->  | I14: =IF(EXACT(C14,"M"),categorie_poids_homme(AA14,E14,H14),IF(EXACT(C14,"F"),categorie_poids_femme(AA14,E14,H14),"")) ->  | J14: =IF(H14="","",ROUNDUP(IF(EXACT(C14,"M"),IF(AA14="FA",indice_homme_FA(H14),indice_homme_PL(H14)),IF(EXACT(C14,"F"),IF(AA14="PL",indice_femme_PL(H14),indice_femme_FA(H14)),0)),6)) ->  | U14: =IF(AND(L14="",M14="",N14="",O14="",P14="",Q14="",R14="",S14="",T14=""),"",total_annonce(L14,M14,N14,O14,P14,Q14,R14,S14,T14)) ->  | V14: =IF(AND(L14="",M14="",N14="",O14="",P14="",Q14="",R14="",S14="",T14=""),"",total_réussi(L14,M14,N14,O14,P14,Q14,R14,S14,T14)) ->  | X14: =IF(AA14=0,"",IF(AA14="FA",IF(H14="","",ROUNDUP(IF(EXACT(C14,"M"),indice_homme_FA(H14)*total_réussi(L14,M14,N14,O14,P14,Q14,R14,S14,T14),IF(EXACT(C14,"F"),indice_femme_FA(H14)*total_réussi(L14,M14,N14,O14,P14,Q14,R14,S14,T14),0)),6)),IF(H14="","",ROUNDUP(IF(EXACT(C14,"M"),indice_homme_PL(H14)*total_réussi(L14,M14,N14,O14,P14,Q14,R14,S14,T14),IF(EXACT(C14,"F"),indice_femme_PL(H14)*total_réussi(L14,M14,N14,O14,P14,Q14,R14,S14,T14),0)),6)))) ->  | Y14: =IF(U14="","",IF(EXACT(C14,"M"),niv_homme(AA14,E14,H14,V14),IF(EXACT(C14,"F"),niv_femme(AA14,E14,H14,V14)," "))) ->  | Z14: =IF(U14="","",IF(EXACT(C14,"M"),niv_open_homme(AA14,E14,H14,V14),IF(EXACT(C14,"F"),niv_open_femme(AA14,E14,H14,V14)," "))) ->  | AA14: FA | AC14: =IF(EXACT(C14,"M"),calcul_age_A1(AA14,D14),IF(EXACT(C14,"F"),calcul_age_A1(AA14,D14),"")) ->  | AD14: =IF(V14="","",IF(EXACT(C14,"M"),niv_homme(AA14,AC14,H14,V14),IF(EXACT(C14,"F"),niv_femme(AA14,AC14,H14,V14)))) -> 
E15: =IF(EXACT(C15,"M"),calcul_age(AA15,D15),IF(EXACT(C15,"F"),calcul_age(AA15,D15),"")) ->  | I15: =IF(EXACT(C15,"M"),categorie_poids_homme(AA15,E15,H15),IF(EXACT(C15,"F"),categorie_poids_femme(AA15,E15,H15),"")) ->  | J15: =IF(H15="","",ROUNDUP(IF(EXACT(C15,"M"),IF(AA15="FA",indice_homme_FA(H15),indice_homme_PL(H15)),IF(EXACT(C15,"F"),IF(AA15="PL",indice_femme_PL(H15),indice_femme_FA(H15)),0)),6)) ->  | U15: =IF(AND(L15="",M15="",N15="",O15="",P15="",Q15="",R15="",S15="",T15=""),"",total_annonce(L15,M15,N15,O15,P15,Q15,R15,S15,T15)) ->  | V15: =IF(AND(L15="",M15="",N15="",O15="",P15="",Q15="",R15="",S15="",T15=""),"",total_réussi(L15,M15,N15,O15,P15,Q15,R15,S15,T15)) ->  | X15: =IF(AA15=0,"",IF(AA15="FA",IF(H15="","",ROUNDUP(IF(EXACT(C15,"M"),indice_homme_FA(H15)*total_réussi(L15,M15,N15,O15,P15,Q15,R15,S15,T15),IF(EXACT(C15,"F"),indice_femme_FA(H15)*total_réussi(L15,M15,N15,O15,P15,Q15,R15,S15,T15),0)),6)),IF(H15="","",ROUNDUP(IF(EXACT(C15,"M"),indice_homme_PL(H15)*total_réussi(L15,M15,N15,O15,P15,Q15,R15,S15,T15),IF(EXACT(C15,"F"),indice_femme_PL(H15)*total_réussi(L15,M15,N15,O15,P15,Q15,R15,S15,T15),0)),6)))) ->  | Y15: =IF(U15="","",IF(EXACT(C15,"M"),niv_homme(AA15,E15,H15,V15),IF(EXACT(C15,"F"),niv_femme(AA15,E15,H15,V15)," "))) ->  | Z15: =IF(U15="","",IF(EXACT(C15,"M"),niv_open_homme(AA15,E15,H15,V15),IF(EXACT(C15,"F"),niv_open_femme(AA15,E15,H15,V15)," "))) ->  | AA15: FA | AC15: =IF(EXACT(C15,"M"),calcul_age_A1(AA15,D15),IF(EXACT(C15,"F"),calcul_age_A1(AA15,D15),"")) ->  | AD15: =IF(V15="","",IF(EXACT(C15,"M"),niv_homme(AA15,AC15,H15,V15),IF(EXACT(C15,"F"),niv_femme(AA15,AC15,H15,V15)))) -> 
E16: =IF(EXACT(C16,"M"),calcul_age(AA16,D16),IF(EXACT(C16,"F"),calcul_age(AA16,D16),"")) ->  | I16: =IF(EXACT(C16,"M"),categorie_poids_homme(AA16,E16,H16),IF(EXACT(C16,"F"),categorie_poids_femme(AA16,E16,H16),"")) ->  | J16: =IF(H16="","",ROUNDUP(IF(EXACT(C16,"M"),IF(AA16="FA",indice_homme_FA(H16),indice_homme_PL(H16)),IF(EXACT(C16,"F"),IF(AA16="PL",indice_femme_PL(H16),indice_femme_FA(H16)),0)),6)) ->  | U16: =IF(AND(L16="",M16="",N16="",O16="",P16="",Q16="",R16="",S16="",T16=""),"",total_annonce(L16,M16,N16,O16,P16,Q16,R16,S16,T16)) ->  | V16: =IF(AND(L16="",M16="",N16="",O16="",P16="",Q16="",R16="",S16="",T16=""),"",total_réussi(L16,M16,N16,O16,P16,Q16,R16,S16,T16)) ->  | X16: =IF(AA16=0,"",IF(AA16="FA",IF(H16="","",ROUNDUP(IF(EXACT(C16,"M"),indice_homme_FA(H16)*total_réussi(L16,M16,N16,O16,P16,Q16,R16,S16,T16),IF(EXACT(C16,"F"),indice_femme_FA(H16)*total_réussi(L16,M16,N16,O16,P16,Q16,R16,S16,T16),0)),6)),IF(H16="","",ROUNDUP(IF(EXACT(C16,"M"),indice_homme_PL(H16)*total_réussi(L16,M16,N16,O16,P16,Q16,R16,S16,T16),IF(EXACT(C16,"F"),indice_femme_PL(H16)*total_réussi(L16,M16,N16,O16,P16,Q16,R16,S16,T16),0)),6)))) ->  | Y16: =IF(U16="","",IF(EXACT(C16,"M"),niv_homme(AA16,E16,H16,V16),IF(EXACT(C16,"F"),niv_femme(AA16,E16,H16,V16)," "))) ->  | Z16: =IF(U16="","",IF(EXACT(C16,"M"),niv_open_homme(AA16,E16,H16,V16),IF(EXACT(C16,"F"),niv_open_femme(AA16,E16,H16,V16)," "))) ->  | AA16: FA | AC16: =IF(EXACT(C16,"M"),calcul_age_A1(AA16,D16),IF(EXACT(C16,"F"),calcul_age_A1(AA16,D16),"")) ->  | AD16: =IF(V16="","",IF(EXACT(C16,"M"),niv_homme(AA16,AC16,H16,V16),IF(EXACT(C16,"F"),niv_femme(AA16,AC16,H16,V16)))) -> 
E17: =IF(EXACT(C17,"M"),calcul_age(AA17,D17),IF(EXACT(C17,"F"),calcul_age(AA17,D17),"")) ->  | I17: =IF(EXACT(C17,"M"),categorie_poids_homme(AA17,E17,H17),IF(EXACT(C17,"F"),categorie_poids_femme(AA17,E17,H17),"")) ->  | J17: =IF(H17="","",ROUNDUP(IF(EXACT(C17,"M"),IF(AA17="FA",indice_homme_FA(H17),indice_homme_PL(H17)),IF(EXACT(C17,"F"),IF(AA17="PL",indice_femme_PL(H17),indice_femme_FA(H17)),0)),6)) ->  | U17: =IF(AND(L17="",M17="",N17="",O17="",P17="",Q17="",R17="",S17="",T17=""),"",total_annonce(L17,M17,N17,O17,P17,Q17,R17,S17,T17)) ->  | V17: =IF(AND(L17="",M17="",N17="",O17="",P17="",Q17="",R17="",S17="",T17=""),"",total_réussi(L17,M17,N17,O17,P17,Q17,R17,S17,T17)) ->  | X17: =IF(AA17=0,"",IF(AA17="FA",IF(H17="","",ROUNDUP(IF(EXACT(C17,"M"),indice_homme_FA(H17)*total_réussi(L17,M17,N17,O17,P17,Q17,R17,S17,T17),IF(EXACT(C17,"F"),indice_femme_FA(H17)*total_réussi(L17,M17,N17,O17,P17,Q17,R17,S17,T17),0)),6)),IF(H17="","",ROUNDUP(IF(EXACT(C17,"M"),indice_homme_PL(H17)*total_réussi(L17,M17,N17,O17,P17,Q17,R17,S17,T17),IF(EXACT(C17,"F"),indice_femme_PL(H17)*total_réussi(L17,M17,N17,O17,P17,Q17,R17,S17,T17),0)),6)))) ->  | Y17: =IF(U17="","",IF(EXACT(C17,"M"),niv_homme(AA17,E17,H17,V17),IF(EXACT(C17,"F"),niv_femme(AA17,E17,H17,V17)," "))) ->  | Z17: =IF(U17="","",IF(EXACT(C17,"M"),niv_open_homme(AA17,E17,H17,V17),IF(EXACT(C17,"F"),niv_open_femme(AA17,E17,H17,V17)," "))) ->  | AA17: FA | AC17: =IF(EXACT(C17,"M"),calcul_age_A1(AA17,D17),IF(EXACT(C17,"F"),calcul_age_A1(AA17,D17),"")) ->  | AD17: =IF(V17="","",IF(EXACT(C17,"M"),niv_homme(AA17,AC17,H17,V17),IF(EXACT(C17,"F"),niv_femme(AA17,AC17,H17,V17)))) -> 
E18: =IF(EXACT(C18,"M"),calcul_age(AA18,D18),IF(EXACT(C18,"F"),calcul_age(AA18,D18),"")) ->  | I18: =IF(EXACT(C18,"M"),categorie_poids_homme(AA18,E18,H18),IF(EXACT(C18,"F"),categorie_poids_femme(AA18,E18,H18),"")) ->  | J18: =IF(H18="","",ROUNDUP(IF(EXACT(C18,"M"),IF(AA18="FA",indice_homme_FA(H18),indice_homme_PL(H18)),IF(EXACT(C18,"F"),IF(AA18="PL",indice_femme_PL(H18),indice_femme_FA(H18)),0)),6)) ->  | U18: =IF(AND(L18="",M18="",N18="",O18="",P18="",Q18="",R18="",S18="",T18=""),"",total_annonce(L18,M18,N18,O18,P18,Q18,R18,S18,T18)) ->  | V18: =IF(AND(L18="",M18="",N18="",O18="",P18="",Q18="",R18="",S18="",T18=""),"",total_réussi(L18,M18,N18,O18,P18,Q18,R18,S18,T18)) ->  | X18: =IF(AA18=0,"",IF(AA18="FA",IF(H18="","",ROUNDUP(IF(EXACT(C18,"M"),indice_homme_FA(H18)*total_réussi(L18,M18,N18,O18,P18,Q18,R18,S18,T18),IF(EXACT(C18,"F"),indice_femme_FA(H18)*total_réussi(L18,M18,N18,O18,P18,Q18,R18,S18,T18),0)),6)),IF(H18="","",ROUNDUP(IF(EXACT(C18,"M"),indice_homme_PL(H18)*total_réussi(L18,M18,N18,O18,P18,Q18,R18,S18,T18),IF(EXACT(C18,"F"),indice_femme_PL(H18)*total_réussi(L18,M18,N18,O18,P18,Q18,R18,S18,T18),0)),6)))) ->  | Y18: =IF(U18="","",IF(EXACT(C18,"M"),niv_homme(AA18,E18,H18,V18),IF(EXACT(C18,"F"),niv_femme(AA18,E18,H18,V18)," "))) ->  | Z18: =IF(U18="","",IF(EXACT(C18,"M"),niv_open_homme(AA18,E18,H18,V18),IF(EXACT(C18,"F"),niv_open_femme(AA18,E18,H18,V18)," "))) ->  | AA18: FA | AC18: =IF(EXACT(C18,"M"),calcul_age_A1(AA18,D18),IF(EXACT(C18,"F"),calcul_age_A1(AA18,D18),"")) ->  | AD18: =IF(V18="","",IF(EXACT(C18,"M"),niv_homme(AA18,AC18,H18,V18),IF(EXACT(C18,"F"),niv_femme(AA18,AC18,H18,V18)))) -> 
E19: =IF(EXACT(C19,"M"),calcul_age(AA19,D19),IF(EXACT(C19,"F"),calcul_age(AA19,D19),"")) ->  | I19: =IF(EXACT(C19,"M"),categorie_poids_homme(AA19,E19,H19),IF(EXACT(C19,"F"),categorie_poids_femme(AA19,E19,H19),"")) ->  | J19: =IF(H19="","",ROUNDUP(IF(EXACT(C19,"M"),IF(AA19="FA",indice_homme_FA(H19),indice_homme_PL(H19)),IF(EXACT(C19,"F"),IF(AA19="PL",indice_femme_PL(H19),indice_femme_FA(H19)),0)),6)) ->  | U19: =IF(AND(L19="",M19="",N19="",O19="",P19="",Q19="",R19="",S19="",T19=""),"",total_annonce(L19,M19,N19,O19,P19,Q19,R19,S19,T19)) ->  | V19: =IF(AND(L19="",M19="",N19="",O19="",P19="",Q19="",R19="",S19="",T19=""),"",total_réussi(L19,M19,N19,O19,P19,Q19,R19,S19,T19)) ->  | X19: =IF(AA19=0,"",IF(AA19="FA",IF(H19="","",ROUNDUP(IF(EXACT(C19,"M"),indice_homme_FA(H19)*total_réussi(L19,M19,N19,O19,P19,Q19,R19,S19,T19),IF(EXACT(C19,"F"),indice_femme_FA(H19)*total_réussi(L19,M19,N19,O19,P19,Q19,R19,S19,T19),0)),6)),IF(H19="","",ROUNDUP(IF(EXACT(C19,"M"),indice_homme_PL(H19)*total_réussi(L19,M19,N19,O19,P19,Q19,R19,S19,T19),IF(EXACT(C19,"F"),indice_femme_PL(H19)*total_réussi(L19,M19,N19,O19,P19,Q19,R19,S19,T19),0)),6)))) ->  | Y19: =IF(U19="","",IF(EXACT(C19,"M"),niv_homme(AA19,E19,H19,V19),IF(EXACT(C19,"F"),niv_femme(AA19,E19,H19,V19)," "))) ->  | Z19: =IF(U19="","",IF(EXACT(C19,"M"),niv_open_homme(AA19,E19,H19,V19),IF(EXACT(C19,"F"),niv_open_femme(AA19,E19,H19,V19)," "))) ->  | AA19: FA | AC19: =IF(EXACT(C19,"M"),calcul_age_A1(AA19,D19),IF(EXACT(C19,"F"),calcul_age_A1(AA19,D19),"")) ->  | AD19: =IF(V19="","",IF(EXACT(C19,"M"),niv_homme(AA19,AC19,H19,V19),IF(EXACT(C19,"F"),niv_femme(AA19,AC19,H19,V19)))) -> 
E20: =IF(EXACT(C20,"M"),calcul_age(AA20,D20),IF(EXACT(C20,"F"),calcul_age(AA20,D20),"")) ->  | I20: =IF(EXACT(C20,"M"),categorie_poids_homme(AA20,E20,H20),IF(EXACT(C20,"F"),categorie_poids_femme(AA20,E20,H20),"")) ->  | J20: =IF(H20="","",ROUNDUP(IF(EXACT(C20,"M"),IF(AA20="FA",indice_homme_FA(H20),indice_homme_PL(H20)),IF(EXACT(C20,"F"),IF(AA20="PL",indice_femme_PL(H20),indice_femme_FA(H20)),0)),6)) ->  | U20: =IF(AND(L20="",M20="",N20="",O20="",P20="",Q20="",R20="",S20="",T20=""),"",total_annonce(L20,M20,N20,O20,P20,Q20,R20,S20,T20)) ->  | V20: =IF(AND(L20="",M20="",N20="",O20="",P20="",Q20="",R20="",S20="",T20=""),"",total_réussi(L20,M20,N20,O20,P20,Q20,R20,S20,T20)) ->  | X20: =IF(AA20=0,"",IF(AA20="FA",IF(H20="","",ROUNDUP(IF(EXACT(C20,"M"),indice_homme_FA(H20)*total_réussi(L20,M20,N20,O20,P20,Q20,R20,S20,T20),IF(EXACT(C20,"F"),indice_femme_FA(H20)*total_réussi(L20,M20,N20,O20,P20,Q20,R20,S20,T20),0)),6)),IF(H20="","",ROUNDUP(IF(EXACT(C20,"M"),indice_homme_PL(H20)*total_réussi(L20,M20,N20,O20,P20,Q20,R20,S20,T20),IF(EXACT(C20,"F"),indice_femme_PL(H20)*total_réussi(L20,M20,N20,O20,P20,Q20,R20,S20,T20),0)),6)))) ->  | Y20: =IF(U20="","",IF(EXACT(C20,"M"),niv_homme(AA20,E20,H20,V20),IF(EXACT(C20,"F"),niv_femme(AA20,E20,H20,V20)," "))) ->  | Z20: =IF(U20="","",IF(EXACT(C20,"M"),niv_open_homme(AA20,E20,H20,V20),IF(EXACT(C20,"F"),niv_open_femme(AA20,E20,H20,V20)," "))) ->  | AA20: FA | AC20: =IF(EXACT(C20,"M"),calcul_age_A1(AA20,D20),IF(EXACT(C20,"F"),calcul_age_A1(AA20,D20),"")) ->  | AD20: =IF(V20="","",IF(EXACT(C20,"M"),niv_homme(AA20,AC20,H20,V20),IF(EXACT(C20,"F"),niv_femme(AA20,AC20,H20,V20)))) -> 
E21: =IF(EXACT(C21,"M"),calcul_age(AA21,D21),IF(EXACT(C21,"F"),calcul_age(AA21,D21),"")) ->  | I21: =IF(EXACT(C21,"M"),categorie_poids_homme(AA21,E21,H21),IF(EXACT(C21,"F"),categorie_poids_femme(AA21,E21,H21),"")) ->  | J21: =IF(H21="","",ROUNDUP(IF(EXACT(C21,"M"),IF(AA21="FA",indice_homme_FA(H21),indice_homme_PL(H21)),IF(EXACT(C21,"F"),IF(AA21="PL",indice_femme_PL(H21),indice_femme_FA(H21)),0)),6)) ->  | U21: =IF(AND(L21="",M21="",N21="",O21="",P21="",Q21="",R21="",S21="",T21=""),"",total_annonce(L21,M21,N21,O21,P21,Q21,R21,S21,T21)) ->  | V21: =IF(AND(L21="",M21="",N21="",O21="",P21="",Q21="",R21="",S21="",T21=""),"",total_réussi(L21,M21,N21,O21,P21,Q21,R21,S21,T21)) ->  | X21: =IF(AA21=0,"",IF(AA21="FA",IF(H21="","",ROUNDUP(IF(EXACT(C21,"M"),indice_homme_FA(H21)*total_réussi(L21,M21,N21,O21,P21,Q21,R21,S21,T21),IF(EXACT(C21,"F"),indice_femme_FA(H21)*total_réussi(L21,M21,N21,O21,P21,Q21,R21,S21,T21),0)),6)),IF(H21="","",ROUNDUP(IF(EXACT(C21,"M"),indice_homme_PL(H21)*total_réussi(L21,M21,N21,O21,P21,Q21,R21,S21,T21),IF(EXACT(C21,"F"),indice_femme_PL(H21)*total_réussi(L21,M21,N21,O21,P21,Q21,R21,S21,T21),0)),6)))) ->  | Y21: =IF(U21="","",IF(EXACT(C21,"M"),niv_homme(AA21,E21,H21,V21),IF(EXACT(C21,"F"),niv_femme(AA21,E21,H21,V21)," "))) ->  | Z21: =IF(U21="","",IF(EXACT(C21,"M"),niv_open_homme(AA21,E21,H21,V21),IF(EXACT(C21,"F"),niv_open_femme(AA21,E21,H21,V21)," "))) ->  | AA21: FA | AC21: =IF(EXACT(C21,"M"),calcul_age_A1(AA21,D21),IF(EXACT(C21,"F"),calcul_age_A1(AA21,D21),"")) ->  | AD21: =IF(V21="","",IF(EXACT(C21,"M"),niv_homme(AA21,AC21,H21,V21),IF(EXACT(C21,"F"),niv_femme(AA21,AC21,H21,V21)))) -> 
E22: =IF(EXACT(C22,"M"),calcul_age(AA22,D22),IF(EXACT(C22,"F"),calcul_age(AA22,D22),"")) ->  | I22: =IF(EXACT(C22,"M"),categorie_poids_homme(AA22,E22,H22),IF(EXACT(C22,"F"),categorie_poids_femme(AA22,E22,H22),"")) ->  | J22: =IF(H22="","",ROUNDUP(IF(EXACT(C22,"M"),IF(AA22="FA",indice_homme_FA(H22),indice_homme_PL(H22)),IF(EXACT(C22,"F"),IF(AA22="PL",indice_femme_PL(H22),indice_femme_FA(H22)),0)),6)) ->  | U22: =IF(AND(L22="",M22="",N22="",O22="",P22="",Q22="",R22="",S22="",T22=""),"",total_annonce(L22,M22,N22,O22,P22,Q22,R22,S22,T22)) ->  | V22: =IF(AND(L22="",M22="",N22="",O22="",P22="",Q22="",R22="",S22="",T22=""),"",total_réussi(L22,M22,N22,O22,P22,Q22,R22,S22,T22)) ->  | X22: =IF(AA22=0,"",IF(AA22="FA",IF(H22="","",ROUNDUP(IF(EXACT(C22,"M"),indice_homme_FA(H22)*total_réussi(L22,M22,N22,O22,P22,Q22,R22,S22,T22),IF(EXACT(C22,"F"),indice_femme_FA(H22)*total_réussi(L22,M22,N22,O22,P22,Q22,R22,S22,T22),0)),6)),IF(H22="","",ROUNDUP(IF(EXACT(C22,"M"),indice_homme_PL(H22)*total_réussi(L22,M22,N22,O22,P22,Q22,R22,S22,T22),IF(EXACT(C22,"F"),indice_femme_PL(H22)*total_réussi(L22,M22,N22,O22,P22,Q22,R22,S22,T22),0)),6)))) ->  | Y22: =IF(U22="","",IF(EXACT(C22,"M"),niv_homme(AA22,E22,H22,V22),IF(EXACT(C22,"F"),niv_femme(AA22,E22,H22,V22)," "))) ->  | Z22: =IF(U22="","",IF(EXACT(C22,"M"),niv_open_homme(AA22,E22,H22,V22),IF(EXACT(C22,"F"),niv_open_femme(AA22,E22,H22,V22)," "))) ->  | AA22: FA | AC22: =IF(EXACT(C22,"M"),calcul_age_A1(AA22,D22),IF(EXACT(C22,"F"),calcul_age_A1(AA22,D22),"")) ->  | AD22: =IF(V22="","",IF(EXACT(C22,"M"),niv_homme(AA22,AC22,H22,V22),IF(EXACT(C22,"F"),niv_femme(AA22,AC22,H22,V22)))) -> 
E23: =IF(EXACT(C23,"M"),calcul_age(AA23,D23),IF(EXACT(C23,"F"),calcul_age(AA23,D23),"")) ->  | I23: =IF(EXACT(C23,"M"),categorie_poids_homme(AA23,E23,H23),IF(EXACT(C23,"F"),categorie_poids_femme(AA23,E23,H23),"")) ->  | J23: =IF(H23="","",ROUNDUP(IF(EXACT(C23,"M"),IF(AA23="FA",indice_homme_FA(H23),indice_homme_PL(H23)),IF(EXACT(C23,"F"),IF(AA23="PL",indice_femme_PL(H23),indice_femme_FA(H23)),0)),6)) ->  | U23: =IF(AND(L23="",M23="",N23="",O23="",P23="",Q23="",R23="",S23="",T23=""),"",total_annonce(L23,M23,N23,O23,P23,Q23,R23,S23,T23)) ->  | V23: =IF(AND(L23="",M23="",N23="",O23="",P23="",Q23="",R23="",S23="",T23=""),"",total_réussi(L23,M23,N23,O23,P23,Q23,R23,S23,T23)) ->  | X23: =IF(AA23=0,"",IF(AA23="FA",IF(H23="","",ROUNDUP(IF(EXACT(C23,"M"),indice_homme_FA(H23)*total_réussi(L23,M23,N23,O23,P23,Q23,R23,S23,T23),IF(EXACT(C23,"F"),indice_femme_FA(H23)*total_réussi(L23,M23,N23,O23,P23,Q23,R23,S23,T23),0)),6)),IF(H23="","",ROUNDUP(IF(EXACT(C23,"M"),indice_homme_PL(H23)*total_réussi(L23,M23,N23,O23,P23,Q23,R23,S23,T23),IF(EXACT(C23,"F"),indice_femme_PL(H23)*total_réussi(L23,M23,N23,O23,P23,Q23,R23,S23,T23),0)),6)))) ->  | Y23: =IF(U23="","",IF(EXACT(C23,"M"),niv_homme(AA23,E23,H23,V23),IF(EXACT(C23,"F"),niv_femme(AA23,E23,H23,V23)," "))) ->  | Z23: =IF(U23="","",IF(EXACT(C23,"M"),niv_open_homme(AA23,E23,H23,V23),IF(EXACT(C23,"F"),niv_open_femme(AA23,E23,H23,V23)," "))) ->  | AA23: FA | AC23: =IF(EXACT(C23,"M"),calcul_age_A1(AA23,D23),IF(EXACT(C23,"F"),calcul_age_A1(AA23,D23),"")) ->  | AD23: =IF(V23="","",IF(EXACT(C23,"M"),niv_homme(AA23,AC23,H23,V23),IF(EXACT(C23,"F"),niv_femme(AA23,AC23,H23,V23)))) -> 
E24: =IF(EXACT(C24,"M"),calcul_age(AA24,D24),IF(EXACT(C24,"F"),calcul_age(AA24,D24),"")) ->  | I24: =IF(EXACT(C24,"M"),categorie_poids_homme(AA24,E24,H24),IF(EXACT(C24,"F"),categorie_poids_femme(AA24,E24,H24),"")) ->  | J24: =IF(H24="","",ROUNDUP(IF(EXACT(C24,"M"),IF(AA24="FA",indice_homme_FA(H24),indice_homme_PL(H24)),IF(EXACT(C24,"F"),IF(AA24="PL",indice_femme_PL(H24),indice_femme_FA(H24)),0)),6)) ->  | U24: =IF(AND(L24="",M24="",N24="",O24="",P24="",Q24="",R24="",S24="",T24=""),"",total_annonce(L24,M24,N24,O24,P24,Q24,R24,S24,T24)) ->  | V24: =IF(AND(L24="",M24="",N24="",O24="",P24="",Q24="",R24="",S24="",T24=""),"",total_réussi(L24,M24,N24,O24,P24,Q24,R24,S24,T24)) ->  | X24: =IF(AA24=0,"",IF(AA24="FA",IF(H24="","",ROUNDUP(IF(EXACT(C24,"M"),indice_homme_FA(H24)*total_réussi(L24,M24,N24,O24,P24,Q24,R24,S24,T24),IF(EXACT(C24,"F"),indice_femme_FA(H24)*total_réussi(L24,M24,N24,O24,P24,Q24,R24,S24,T24),0)),6)),IF(H24="","",ROUNDUP(IF(EXACT(C24,"M"),indice_homme_PL(H24)*total_réussi(L24,M24,N24,O24,P24,Q24,R24,S24,T24),IF(EXACT(C24,"F"),indice_femme_PL(H24)*total_réussi(L24,M24,N24,O24,P24,Q24,R24,S24,T24),0)),6)))) ->  | Y24: =IF(U24="","",IF(EXACT(C24,"M"),niv_homme(AA24,E24,H24,V24),IF(EXACT(C24,"F"),niv_femme(AA24,E24,H24,V24)," "))) ->  | Z24: =IF(U24="","",IF(EXACT(C24,"M"),niv_open_homme(AA24,E24,H24,V24),IF(EXACT(C24,"F"),niv_open_femme(AA24,E24,H24,V24)," "))) ->  | AA24: FA | AC24: =IF(EXACT(C24,"M"),calcul_age_A1(AA24,D24),IF(EXACT(C24,"F"),calcul_age_A1(AA24,D24),"")) ->  | AD24: =IF(V24="","",IF(EXACT(C24,"M"),niv_homme(AA24,AC24,H24,V24),IF(EXACT(C24,"F"),niv_femme(AA24,AC24,H24,V24)))) -> 
A30: OBSERVATIONS et DIVERS : | G30: Secrétaire | I30: 1er Assesseur | M30: Chef de Plateau | Q30: 2eme Assesseur

Sheet Engagements
A1: NOM : | B1: =FA!F9 -> 0 | F1: Prénom : | G1: =FA!G9 -> 0 | I1: N° tirage au sort : | J1: =FA!K9 -> 0
A2: Discipline | B2: =FA!$AA9 -> FA | C2: Sexe : | D2: =FA!$C9 -> 0 | E2: Date de naissance : | F2: =FA!$D9 -> 00:00:00 | G2: Catégorie d'âge : | H2: =FA!$E9 ->  | I2: Visa de l'athlète :
A3: Club : | B3: =FA!$B9 -> 0 | F3: N° licence : | G3: =FA!$A9 -> 0
A4: Poids de corps : | D4: Barre de départ | E4: 1er essai | F4: 2° essai | G4: 3° essai | H4: Modif 3° essai | I4: Modif 3° essai | J4: Résultat
A5: Squat | B5: Hauteur support :
A6: Dév. Couché | B6: Cales : O N Hauteur :
A7: Soulevé de Terre
A9: NOM : | B9: =FA!F$10 -> 0 | F9: Prénom : | G9: =FA!G$10 -> 0 | I9: N° tirage au sort : | J9: =FA!K$10 -> 0
A10: Discipline | B10: =FA!$AA10 -> FA | C10: Sexe : | D10: =FA!$C10 -> 0 | E10: Date de naissance : | F10: =FA!$D10 -> 00:00:00 | G10: Catégorie d'âge : | H10: =FA!$E10 ->  | I10: Visa de l'athlète :
A11: Club : | B11: =FA!B$10 -> 0 | F11: N° licence : | G11: =FA!A$10 -> 0
A12: Poids de corps : | D12: Barre de départ | E12: 1er essai | F12: 2° essai | G12: 3° essai | H12: Modif 3° essai | I12: Modif 3° essai | J12: Résultat
A13: Squat | B13: Hauteur support :
A14: Dév. Couché | B14: Cales : O N Hauteur :
A15: Soulevé de Terre
A17: NOM : | B17: =FA!F$11 -> 0 | F17: Prénom : | G17: =FA!G$11 -> 0 | I17: N° tirage au sort : | J17: =FA!K$11 -> 0
A18: Discipline | B18: =FA!$AA11 -> FA | C18: Sexe : | D18: =FA!$C11 -> 0 | E18: Date de naissance : | F18: =FA!$D11 -> 00:00:00 | G18: Catégorie d'âge : | H18: =FA!$E11 ->  | I18: Visa de l'athlète :
A19: Club : | B19: =FA!B$11 -> 0 | F19: N° licence : | G19: =FA!A$11 -> 0
A20: Poids de corps : | D20: Barre de départ | E20: 1er essai | F20: 2° essai | G20: 3° essai | H20: Modif 3° essai | I20: Modif 3° essai | J20: Résultat
A21: Squat | B21: Hauteur support :
A22: Dév. Couché | B22: Cales : O N Hauteur :
A23: Soulevé de Terre
A25: NOM : | B25: =FA!F$12 -> 0 | F25: Prénom : | G25: =FA!G$12 -> 0 | I25: N° tirage au sort : | J25: =FA!K$12 -> 0
A26: Discipline | B26: =FA!$AA12 -> FA | C26: Sexe : | D26: =FA!$C12 -> 0 | E26: Date de naissance : | F26: =FA!$D12 -> 00:00:00 | G26: Catégorie d'âge : | H26: =FA!$E12 ->  | I26: Visa de l'athlète :
A27: Club : | B27: =FA!B$12 -> 0 | F27: N° licence : | G27: =FA!A$12 -> 0
A28: Poids de corps : | D28: Barre de départ | E28: 1er essai | F28: 2° essai | G28: 3° essai | H28: Modif 3° essai | I28: Modif 3° essai | J28: Résultat
A29: Squat | B29: Hauteur support :
A30: Dév. Couché | B30: Cales : O N Hauteur :
A31: Soulevé de Terre
A33: NOM : | B33: =FA!F$13 -> 0 | F33: Prénom : | G33: =FA!G$13 -> 0 | I33: N° tirage au sort : | J33: =FA!K$13 -> 0
A34: Discipline | B34: =FA!$AA13 -> FA | C34: Sexe : | D34: =FA!$C13 -> 0 | E34: Date de naissance : | F34: =FA!$D13 -> 00:00:00 | G34: Catégorie d'âge : | H34: =FA!E$13 ->  | I34: Visa de l'athlète :
A35: Club : | B35: =FA!B$13 -> 0 | F35: N° licence : | G35: =FA!A$13 -> 0
A36: Poids de corps : | D36: Barre de départ | E36: 1er essai | F36: 2° essai | G36: 3° essai | H36: Modif 3° essai | I36: Modif 3° essai | J36: Résultat
A37: Squat | B37: Hauteur support :
A38: Dév. Couché | B38: Cales : O N Hauteur :
A39: Soulevé de Terre
A41: NOM : | B41: =FA!F$14 -> 0 | F41: Prénom : | G41: =FA!G$14 -> 0 | I41: N° tirage au sort : | J41: =FA!K$14 -> 0
A42: Discipline | B42: =FA!$AA14 -> FA | C42: Sexe : | D42: =FA!$C14 -> 0 | E42: Date de naissance : | F42: =FA!$D14 -> 00:00:00 | G42: Catégorie d'âge : | H42: =FA!E$14 ->  | I42: Visa de l'athlète :
A43: Club : | B43: =FA!B$14 -> 0 | F43: N° licence : | G43: =FA!A$14 -> 0
A44: Poids de corps : | D44: Barre de départ | E44: 1er essai | F44: 2° essai | G44: 3° essai | H44: Modif 3° essai | I44: Modif 3° essai | J44: Résultat
A45: Squat | B45: Hauteur support :
A46: Dév. Couché | B46: Cales : O N Hauteur :
A47: Soulevé de Terre
A49: NOM : | B49: =FA!F$15 -> 0 | F49: Prénom : | G49: =FA!G$15 -> 0 | I49: N° tirage au sort : | J49: =FA!K$15 -> 0
A50: Discipline | B50: =FA!$AA15 -> FA | C50: Sexe : | D50: =FA!$C15 -> 0 | E50: Date de naissance : | F50: =FA!$D15 -> 00:00:00 | G50: Catégorie d'âge : | H50: =FA!E$15 ->  | I50: Visa de l'athlète :
A51: Club : | B51: =FA!B$15 -> 0 | F51: N° licence : | G51: =FA!A$15 -> 0
A52: Poids de corps : | D52: Barre de départ | E52: 1er essai | F52: 2° essai | G52: 3° essai | H52: Modif 3° essai | I52: Modif 3° essai | J52: Résultat
A53: Squat | B53: Hauteur support :
A54: Dév. Couché | B54: Cales : O N Hauteur :
A55: Soulevé de Terre
A57: NOM : | B57: =FA!F$16 -> 0 | F57: Prénom : | G57: =FA!G$16 -> 0 | I57: N° tirage au sort : | J57: =FA!K$16 -> 0
A58: Discipline | B58: =FA!$AA16 -> FA | C58: Sexe : | D58: =FA!$C16 -> 0 | E58: Date de naissance : | F58: =FA!$D16 -> 00:00:00 | G58: Catégorie d'âge : | H58: =FA!E$16 ->  | I58: Visa de l'athlète :
A59: Club : | B59: =FA!B$16 -> 0 | F59: N° licence : | G59: =FA!A$16 -> 0
A60: Poids de corps : | D60: Barre de départ | E60: 1er essai | F60: 2° essai | G60: 3° essai | H60: Modif 3° essai | I60: Modif 3° essai | J60: Résultat
A61: Squat | B61: Hauteur support :
A62: Dév. Couché | B62: Cales : O N Hauteur :
A63: Soulevé de Terre
A65: NOM : | B65: =FA!F$17 -> 0 | F65: Prénom : | G65: =FA!G$17 -> 0 | I65: N° tirage au sort : | J65: =FA!K$17 -> 0
A66: Discipline | B66: =FA!$AA17 -> FA | C66: Sexe : | D66: =FA!$C17 -> 0 | E66: Date de naissance : | F66: =FA!$D17 -> 00:00:00 | G66: Catégorie d'âge : | H66: =FA!$E17 ->  | I66: Visa de l'athlète :
A67: Club : | B67: =FA!B$17 -> 0 | F67: N° licence : | G67: =FA!A$17 -> 0
A68: Poids de corps : | D68: Barre de départ | E68: 1er essai | F68: 2° essai | G68: 3° essai | H68: Modif 3° essai | I68: Modif 3° essai | J68: Résultat
A69: Squat | B69: Hauteur support :
A70: Dév. Couché | B70: Cales : O N Hauteur :
A71: Soulevé de Terre
A73: NOM : | B73: =FA!F$18 -> 0 | F73: Prénom : | G73: =FA!G$18 -> 0 | I73: N° tirage au sort : | J73: =FA!K$18 -> 0
A74: Discipline | B74: =FA!$AA18 -> FA | C74: Sexe : | D74: =FA!$C18 -> 0 | E74: Date de naissance : | F74: =FA!$D18 -> 00:00:00 | G74: Catégorie d'âge : | H74: =FA!$E18 ->  | I74: Visa de l'athlète :
A75: Club : | B75: =FA!B$18 -> 0 | F75: N° licence : | G75: =FA!A$18 -> 0
A76: Poids de corps : | D76: Barre de départ | E76: 1er essai | F76: 2° essai | G76: 3° essai | H76: Modif 3° essai | I76: Modif 3° essai | J76: Résultat
A77: Squat | B77: Hauteur support :
A78: Dév. Couché | B78: Cales : O N Hauteur :
A79: Soulevé de Terre
A81: NOM : | B81: =FA!F$19 -> 0 | F81: Prénom : | G81: =FA!G$19 -> 0 | I81: N° tirage au sort : | J81: =FA!K$19 -> 0
A82: Discipline | B82: =FA!$AA19 -> FA | C82: Sexe : | D82: =FA!$C19 -> 0 | E82: Date de naissance : | F82: =FA!$D19 -> 00:00:00 | G82: Catégorie d'âge : | H82: =FA!$E19 ->  | I82: Visa de l'athlète :
A83: Club : | B83: =FA!B$19 -> 0 | F83: N° licence : | G83: =FA!A$19 -> 0
A84: Poids de corps : | D84: Barre de départ | E84: 1er essai | F84: 2° essai | G84: 3° essai | H84: Modif 3° essai | I84: Modif 3° essai | J84: Résultat
A85: Squat | B85: Hauteur support :
A86: Dév. Couché | B86: Cales : O N Hauteur :
A87: Soulevé de Terre
A89: NOM : | B89: =FA!F$20 -> 0 | F89: Prénom : | G89: =FA!G$20 -> 0 | I89: N° tirage au sort : | J89: =FA!K$20 -> 0
A90: Discipline | B90: =FA!$AA20 -> FA | C90: Sexe : | D90: =FA!$C20 -> 0 | E90: Date de naissance : | F90: =FA!$D20 -> 00:00:00 | G90: Catégorie d'âge : | H90: =FA!$E20 ->  | I90: Visa de l'athlète :
A91: Club : | B91: =FA!B$20 -> 0 | F91: N° licence : | G91: =FA!A$20 -> 0
A92: Poids de corps : | D92: Barre de départ | E92: 1er essai | F92: 2° essai | G92: 3° essai | H92: Modif 3° essai | I92: Modif 3° essai | J92: Résultat
A93: Squat | B93: Hauteur support :
A94: Dév. Couché | B94: Cales : O N Hauteur :
A95: Soulevé de Terre
A97: NOM : | B97: =FA!F$21 -> 0 | F97: Prénom : | G97: =FA!G$21 -> 0 | I97: N° tirage au sort : | J97: =FA!K$21 -> 0
A98: Discipline | B98: =FA!$AA21 -> FA | C98: Sexe : | D98: =FA!$C21 -> 0 | E98: Date de naissance : | F98: =FA!$D21 -> 00:00:00 | G98: Catégorie d'âge : | H98: =FA!E$21 ->  | I98: Visa de l'athlète :
A99: Club : | B99: =FA!B$21 -> 0 | F99: N° licence : | G99: =FA!A$21 -> 0
A100: Poids de corps : | D100: Barre de départ | E100: 1er essai | F100: 2° essai | G100: 3° essai | H100: Modif 3° essai | I100: Modif 3° essai | J100: Résultat
A101: Squat | B101: Hauteur support :
A102: Dév. Couché | B102: Cales : O N Hauteur :
A103: Soulevé de Terre
A105: NOM : | B105: =FA!F$22 -> 0 | F105: Prénom : | G105: =FA!G$22 -> 0 | I105: N° tirage au sort : | J105: =FA!K$22 -> 0
A106: Discipline | B106: =FA!$AA22 -> FA | C106: Sexe : | D106: =FA!$C22 -> 0 | E106: Date de naissance : | F106: =FA!$D22 -> 00:00:00 | G106: Catégorie d'âge : | H106: =FA!$E22 ->  | I106: Visa de l'athlète :
A107: Club : | B107: =FA!B$22 -> 0 | F107: N° licence : | G107: =FA!A$22 -> 0
A108: Poids de corps : | D108: Barre de départ | E108: 1er essai | F108: 2° essai | G108: 3° essai | H108: Modif 3° essai | I108: Modif 3° essai | J108: Résultat
A109: Squat | B109: Hauteur support :
A110: Dév. Couché | B110: Cales : O N Hauteur :
A111: Soulevé de Terre
A113: NOM : | B113: =FA!F$23 -> 0 | F113: Prénom : | G113: =FA!G$23 -> 0 | I113: N° tirage au sort : | J113: =FA!K$23 -> 0
A114: Discipline | B114: =FA!$AA23 -> FA | C114: Sexe : | D114: =FA!$C23 -> 0 | E114: Date de naissance : | F114: =FA!$D23 -> 00:00:00 | G114: Catégorie d'âge : | H114: =FA!$E23 ->  | I114: Visa de l'athlète :
A115: Club : | B115: =FA!B$23 -> 0 | F115: N° licence : | G115: =FA!A$23 -> 0
A116: Poids de corps : | D116: Barre de départ | E116: 1er essai | F116: 2° essai | G116: 3° essai | H116: Modif 3° essai | I116: Modif 3° essai | J116: Résultat
A117: Squat | B117: Hauteur support :
A118: Dév. Couché | B118: Cales : O N Hauteur :
A119: Soulevé de Terre
A121: NOM : | B121: =FA!F$24 -> 0 | F121: Prénom : | G121: =FA!G$24 -> 0 | I121: N° tirage au sort : | J121: =FA!K$24 -> 0
A122: Discipline | B122: =FA!$AA24 -> FA | C122: Sexe : | D122: =FA!$C24 -> 0 | E122: Date de naissance : | F122: =FA!$D24 -> 00:00:00 | G122: Catégorie d'âge : | H122: =FA!$E24 ->  | I122: Visa de l'athlète :
A123: Club : | B123: =FA!B$24 -> 0 | F123: N° licence : | G123: =FA!A$24 -> 0
A124: Poids de corps : | D124: Barre de départ | E124: 1er essai | F124: 2° essai | G124: 3° essai | H124: Modif 3° essai | I124: Modif 3° essai | J124: Résultat
A125: Squat | B125: Hauteur support :
A126: Dév. Couché | B126: Cales : O N Hauteur :
A127: Soulevé de Terre

Sheet Niv FA
A1: NIVEAUX FORCE ATHLETIQUE
A2: Publié le 10 Juin 2025 - 4 Avril 2025 Subjuniors et Juniors et le 10 Juin 2025 Masters mis à jour - Niveau internationaux et Open à jour Novembre 2025
B3: les performances inferieures au niveau régionale sont classées par défaut comme niveau départemental
A4: SJR masculin | J4: SJR féminine
A5: Catég. | B5: R3 | C5: R2 | D5: R1 | E5: N2 | F5: N1 | G5: Europe | H5: Monde | J5: Catég. | K5: R3 | L5: R2 | M5: R1 | N5: N2 | O5: N1 | P5: Europe | Q5: Monde
A6: 53 | B6: 145 | C6: 195 | D6: 245 | E6: 272.5 | F6: 320 | G6: 490 | H6: 500 | J6: 43 | K6: 80 | L6: 102.5 | M6: 125 | N6: 147.5 | O6: 190 | P6: 260 | Q6: 270
A7: 59 | B7: 170 | C7: 220 | D7: 290 | E7: 320 | F7: 380 | G7: 500 | H7: 510 | J7: 47 | K7: 100 | L7: 122.5 | M7: 145 | N7: 167.5 | O7: 210 | P7: 270 | Q7: 280
A8: 66 | B8: 235 | C8: 285 | D8: 355 | E8: 387.5 | F8: 470 | G8: 560 | H8: 590 | J8: 52 | K8: 110 | L8: 135 | M8: 160 | N8: 185 | O8: 240 | P8: 335 | Q8: 340
A9: 74 | B9: 285 | C9: 335 | D9: 405 | E9: 442.5 | F9: 515 | G9: 610 | H9: 650 | J9: 57 | K9: 120 | L9: 147.5 | M9: 175 | N9: 202.5 | O9: 265 | P9: 345 | Q9: 350
A10: 83 | B10: 335 | C10: 385 | D10: 455 | E10: 492.5 | F10: 535 | G10: 660 | H10: 700 | J10: 63 | K10: 125 | L10: 152.5 | M10: 180 | N10: 207.5 | O10: 285 | P10: 395 | Q10: 400
A11: 93 | B11: 315 | C11: 365 | D11: 465 | E11: 502.5 | F11: 545 | G11: 680 | H11: 720 | J11: 69 | K11: 140 | L11: 167.5 | M11: 195 | N11: 222.5 | O11: 300 | P11: 420 | Q11: 425
A12: 105 | B12: 325 | C12: 375 | D12: 475 | E12: 512.5 | F12: 560 | G12: 700 | H12: 730 | J12: 76 | K12: 160 | L12: 187.5 | M12: 215 | N12: 242.5 | O12: 315 | P12: 425 | Q12: 430
A13: 120 | B13: 335 | C13: 385 | D13: 485 | E13: 522.5 | F13: 580 | G13: 720 | H13: 740 | J13: 84 | K13: 175 | L13: 202.5 | M13: 230 | N13: 257.5 | O13: 320 | P13: 430 | Q13: 435
A14: 120 + | B14: 355 | C14: 405 | D14: 505 | E14: 542.5 | F14: 590 | G14: 725 | H14: 745 | J14: 84 + | K14: 190 | L14: 217.5 | M14: 245 | N14: 272.5 | O14: 340 | P14: 440 | Q14: 450
B15: les performances inferieures au niveau régionale sont classées par défaut comme niveau départemental
A16: JR masculin | J16: JR féminine
A17: Catég. | B17: R3 | C17: R2 | D17: R1 | E17: N2 | F17: N1 | G17: Europe | H17: Monde | J17: Catég. | K17: R3 | L17: R2 | M17: R1 | N17: N2 | O17: N1 | P17: Europe | Q17: Monde
A18: 53 | B18: 200 | C18: 250 | D18: 300 | E18: 362.5 | F18: 400 | G18: 535 | H18: 550 | J18: 43 | K18: 125 | L18: 145 | M18: 165 | N18: 187.5 | O18: 230 | P18: 340 | Q18: 345
A19: 59 | B19: 215 | C19: 265 | D19: 335 | E19: 420 | F19: 480 | G19: 545 | H19: 590 | J19: 47 | K19: 140 | L19: 160 | M19: 180 | N19: 207.5 | O19: 285 | P19: 345 | Q19: 365
A20: 66 | B20: 295 | C20: 345 | D20: 415 | E20: 497.5 | F20: 557.5 | G20: 620 | H20: 640 | J20: 52 | K20: 190 | L20: 210 | M20: 230 | N20: 255 | O20: 335 | P20: 370 | Q20: 380
A21: 74 | B21: 360 | C21: 410 | D21: 480 | E21: 562.5 | F21: 650 | G21: 695 | H21: 715 | J21: 57 | K21: 200 | L21: 230 | M21: 260 | N21: 302.5 | O21: 365 | P21: 420 | Q21: 430
A22: 83 | B22: 410 | C22: 460 | D22: 530 | E22: 602.5 | F22: 680 | G22: 740 | H22: 770 | J22: 63 | K22: 220 | L22: 250 | M22: 280 | N22: 322.5 | O22: 390 | P22: 455 | Q22: 465
A23: 93 | B23: 397.5 | C23: 447.5 | D23: 547.5 | E23: 627.5 | F23: 695 | G23: 780 | H23: 815 | J23: 69 | K23: 230 | L23: 260 | M23: 290 | N23: 332.5 | O23: 410 | P23: 490 | Q23: 515
A24: 105 | B24: 420 | C24: 470 | D24: 570 | E24: 642.5 | F24: 707.5 | G24: 810 | H24: 840 | J24: 76 | K24: 235 | L24: 265 | M24: 295 | N24: 342.5 | O24: 420 | P24: 500 | Q24: 520
A25: 120 | B25: 427.5 | C25: 477.5 | D25: 577.5 | E25: 652.5 | F25: 715 | G25: 840 | H25: 850 | J25: 84 | K25: 245 | L25: 275 | M25: 305 | N25: 352.5 | O25: 425 | P25: 520 | Q25: 535
A26: 120 + | B26: 440 | C26: 490 | D26: 590 | E26: 662.5 | F26: 730 | G26: 845 | H26: 860 | J26: 84 + | K26: 250 | L26: 280 | M26: 310 | N26: 357.5 | O26: 430 | P26: 530 | Q26: 540
B27: les performances inferieures au niveau régionale sont classées par défaut comme niveau départemental
A28: SNR masculin | J28: SNR féminine
A29: Catég. | B29: R3 | C29: R2 | D29: R1 | E29: N2 | F29: N1 | G29: Europe | H29: Monde | J29: Catég. | K29: R3 | L29: R2 | M29: R1 | N29: N2 | O29: N1 | P29: Europe | Q29: Monde
A30: 59 | B30: 350 | C30: 400 | D30: 450 | E30: 500 | F30: 535 | G30: 580 | H30: 600 | J30: 47 | K30: 200 | L30: 220 | M30: 250 | N30: 300 | O30: 325 | P30: 390 | Q30: 400
A31: 66 | B31: 430 | C31: 480 | D31: 530 | E31: 580 | F31: 600 | G31: 650 | H31: 670 | J31: 52 | K31: 250 | L31: 270 | M31: 300 | N31: 350 | O31: 380 | P31: 425 | Q31: 435
A32: 74 | B32: 510 | C32: 560 | D32: 610 | E32: 660 | F32: 680 | G32: 750 | H32: 760 | J32: 57 | K32: 265 | L32: 295 | M32: 335 | N32: 385 | O32: 410 | P32: 475 | Q32: 485
A33: 83 | B33: 570 | C33: 620 | D33: 670 | E33: 720 | F33: 740 | G33: 790 | H33: 810 | J33: 63 | K33: 280 | L33: 310 | M33: 350 | N33: 400 | O33: 440 | P33: 500 | Q33: 510
A34: 93 | B34: 595 | C34: 645 | D34: 695 | E34: 745 | F34: 770 | G34: 840 | H34: 860 | J34: 69 | K34: 300 | L34: 330 | M34: 370 | N34: 420 | O34: 460 | P34: 535 | Q34: 550
A35: 105 | B35: 620 | C35: 670 | D35: 720 | E35: 760 | F35: 800 | G35: 900 | H35: 910 | J35: 76 | K35: 305 | L35: 335 | M35: 375 | N35: 425 | O35: 470 | P35: 550 | Q35: 565
A36: 120 | B36: 610 | C36: 660 | D36: 710 | E36: 770 | F36: 810 | G36: 915 | H36: 930 | J36: 84 | K36: 315 | L36: 345 | M36: 385 | N36: 435 | O36: 480 | P36: 555 | Q36: 570
A37: 120 + | B37: 640 | C37: 690 | D37: 740 | E37: 800 | F37: 820 | G37: 920 | H37: 950 | J37: 84 + | K37: 320 | L37: 350 | M37: 390 | N37: 440 | O37: 500 | P37: 620 | Q37: 650
B38: les performances inferieures au niveau régionale sont classées par défaut comme niveau départemental | C38: les performances inferieures au niveau régionale sont classées par défaut comme niveau départemental
A39: M1 masculin | J39: M1 féminine
A40: Catég. | B40: R3 | C40: R2 | D40: R1 | E40: N2 | F40: N1 | J40: Catég. | K40: R3 | L40: R2 | M40: R1 | N40: N2 | O40: N1
A41: 59 | B41: 157.5 | C41: 220 | D41: 267.5 | E41: 290 | F41: 370 | J41: 47 | K41: 102.5 | L41: 145 | M41: 177.5 | N41: 190 | O41: 240
A42: 66 | B42: 185 | C42: 260 | D42: 315 | E42: 347.5 | F42: 400 | J42: 52 | K42: 112.5 | L42: 157.5 | M42: 192.5 | N42: 210 | O42: 260
A43: 74 | B43: 212.5 | C43: 300 | D43: 362.5 | E43: 395 | F43: 465 | J43: 57 | K43: 120 | L43: 167.5 | M43: 205 | N43: 220 | O43: 270
A44: 83 | B44: 240 | C44: 335 | D44: 407.5 | E44: 452.5 | F44: 540 | J44: 63 | K44: 125 | L44: 172.5 | M44: 210 | N44: 225 | O44: 280
A45: 93 | B45: 265 | C45: 370 | D45: 450 | E45: 492.5 | F45: 580 | J45: 69 | K45: 127.5 | L45: 180 | M45: 217.5 | N45: 240 | O45: 300
A46: 105 | B46: 280 | C46: 392.5 | D46: 475 | E46: 517.5 | F46: 600 | J46: 76 | K46: 135 | L46: 190 | M46: 230 | N46: 250 | O46: 310
A47: 120 | B47: 302.5 | C47: 422.5 | D47: 515 | E47: 557.5 | F47: 630 | J47: 84 | K47: 142.5 | L47: 200 | M47: 242.5 | N47: 260 | O47: 330
A48: 120 + | B48: 305 | C48: 427.5 | D48: 517.5 | E48: 560 | F48: 650 | J48: 84 + | K48: 150 | L48: 210 | M48: 255 | N48: 270 | O48: 340
B49: les performances inferieures au niveau régionale sont classées par défaut comme niveau départemental
A50: M2 masculin | J50: M2 féminine
A51: Catég. | B51: R3 | C51: R2 | D51: R1 | E51: N2 | F51: N1 | J51: Catég. | K51: R3 | L51: R2 | M51: R1 | N51: N2 | O51: N1
A52: 59 | B52: 142.5 | C52: 197.5 | D52: 240 | E52: 270 | F52: 340 | J52: 47 | K52: 92.5 | L52: 132.5 | M52: 160 | N52: 170 | O52: 200
A53: 66 | B53: 167.5 | C53: 235 | D53: 285 | E53: 312.5 | F53: 380 | J53: 52 | K53: 102.5 | L53: 142.5 | M53: 172.5 | N53: 185 | O53: 220
A54: 74 | B54: 192.5 | C54: 270 | D54: 327.5 | E54: 362.5 | F54: 435 | J54: 57 | K54: 107.5 | L54: 152.5 | M54: 185 | N54: 200 | O54: 235
A55: 83 | B55: 217.5 | C55: 302.5 | D55: 367.5 | E55: 400 | F55: 480 | J55: 63 | K55: 112.5 | L55: 157.5 | M55: 190 | N55: 205 | O55: 250
A56: 93 | B56: 240 | C56: 335 | D56: 405 | E56: 440 | F56: 510 | J56: 69 | K56: 117.5 | L56: 165 | M56: 200 | N56: 215 | O56: 265
A57: 105 | B57: 252.5 | C57: 352.5 | D57: 430 | E57: 465 | F57: 530 | J57: 76 | K57: 122.5 | L57: 170 | M57: 207.5 | N57: 225 | O57: 280
A58: 120 | B58: 272.5 | C58: 380 | D58: 462.5 | E58: 500 | F58: 560 | J58: 84 | K58: 130 | L58: 182.5 | M58: 220 | N58: 240 | O58: 295
A59: 120 + | B59: 292.5 | C59: 407.5 | D59: 495 | E59: 527.5 | F59: 600 | J59: 84 + | K59: 140 | L59: 195 | M59: 235 | N59: 255 | O59: 305
B60: les performances inferieures au niveau régionale sont classées par défaut comme niveau départemental
A61: M3 masculin | J61: M3 féminine
A62: Catég. | B62: R3 | C62: R2 | D62: R1 | E62: N2 | F62: N1 | J62: Catég. | K62: R3 | L62: R2 | M62: R1 | N62: N2 | O62: N1
A63: 59 | B63: 127.5 | C63: 177.5 | D63: 215 | E63: 237.5 | F63: 280 | J63: 47 | K63: 82.5 | L63: 115 | M63: 140 | N63: 152.5 | O63: 180
A64: 66 | B64: 150 | C64: 207.5 | D64: 252.5 | E64: 275 | F64: 320 | J64: 52 | K64: 90 | L64: 125 | M64: 152.5 | N64: 165 | O64: 190
A65: 74 | B65: 170 | C65: 240 | D65: 290 | E65: 320 | F65: 340 | J65: 57 | K65: 95 | L65: 132.5 | M65: 162.5 | N65: 177.5 | O65: 200
A66: 83 | B66: 192.5 | C66: 270 | D66: 327.5 | E66: 350 | F66: 370 | J66: 63 | K66: 100 | L66: 140 | M66: 170 | N66: 182.5 | O66: 210
A67: 93 | B67: 212.5 | C67: 297.5 | D67: 362.5 | E67: 385 | F67: 420 | J67: 69 | K67: 105 | L67: 145 | M67: 177.5 | N67: 192.5 | O67: 225
A68: 105 | B68: 222.5 | C68: 312.5 | D68: 380 | E68: 410 | F68: 440 | J68: 76 | K68: 110 | L68: 152.5 | M68: 185 | N68: 200 | O68: 240
A69: 120 | B69: 242.5 | C69: 340 | D69: 412.5 | E69: 440 | F69: 470 | J69: 84 | K69: 115 | L69: 160 | M69: 195 | N69: 212.5 | O69: 255
A70: 120 + | B70: 260 | C70: 362.5 | D70: 440 | E70: 470 | F70: 510 | J70: 84 + | K70: 125 | L70: 172.5 | M70: 210 | N70: 227.5 | O70: 270
B71: les performances inferieures au niveau régionale sont classées par défaut comme niveau départemental
A72: M4 masculin | J72: M4 féminine
A73: Catég. | B73: R3 | C73: R2 | D73: R1 | E73: N2 | F73: N1 | J73: Catég. | K73: R3 | L73: R2 | M73: R1 | N73: N2 | O73: N1
A74: 59 | B74: 95 | C74: 132.5 | D74: 162.5 | E74: 180 | F74: 220 | J74: 47 | K74: 62.5 | L74: 87.5 | M74: 105 | N74: 115 | O74: 150
A75: 66 | B75: 112.5 | C75: 155 | D75: 190 | E75: 207.5 | F75: 250 | J75: 52 | K75: 67.5 | L75: 95 | M75: 115 | N75: 125 | O75: 160
A76: 74 | B76: 127.5 | C76: 177.5 | D76: 217.5 | E76: 235 | F76: 280 | J76: 57 | K76: 72.5 | L76: 100 | M76: 120 | N76: 132.5 | O76: 170
A77: 83 | B77: 145 | C77: 202.5 | D77: 245 | E77: 265 | F77: 310 | J77: 63 | K77: 75 | L77: 105 | M77: 125 | N77: 135 | O77: 180
A78: 93 | B78: 160 | C78: 222.5 | D78: 270 | E78: 292.5 | F78: 330 | J78: 69 | K78: 77.5 | L78: 110 | M78: 132.5 | N78: 145 | O78: 190
A79: 105 | B79: 167.5 | C79: 235 | D79: 285 | E79: 312.5 | F79: 360 | J79: 76 | K79: 82.5 | L79: 115 | M79: 140 | N79: 152.5 | O79: 200
A80: 120 | B80: 180 | C80: 255 | D80: 310 | E80: 337.5 | F80: 375 | J80: 84 | K80: 87.5 | L80: 120 | M80: 147.5 | N80: 160 | O80: 210
A81: 120 + | B81: 195 | C81: 272.5 | D81: 332.5 | E81: 360 | F81: 390 | J81: 84 + | K81: 92.5 | L81: 130 | M81: 157.5 | N81: 170 | O81: 220

Sheet Niv PL
A1: NIVEAUX POWER LIFTING
A2: A la date du 13 Novembre 2025
B3: les performances inferieures au niveau régionale sont classées par défaut comme niveau départemental
A4: JR masculin | D4: SNR masculin | J4: JR féminine | N4: SNR féminine
A5: Catég. | B5: R3 | C5: R2 | D5: R1 | E5: N2 | F5: N1 | G5: Europe | H5: Monde | J5: Catég. | K5: R3 | L5: R2 | M5: R1 | N5: N2 | O5: N1 | P5: Europe | Q5: Monde
A6: 59 | B6: 235 | C6: 327.5 | D6: 397.5 | E6: 432.5 | F6: 472.5 | G6: 600 | H6: 620 | J6: 47 | K6: 137.5 | L6: 192.5 | M6: 232.5 | N6: 262.5 | O6: 285 | P6: 400 | Q6: 430
A7: 66 | B7: 275 | C7: 385 | D7: 465 | E7: 532.5 | F7: 572.5 | G7: 670 | H7: 700 | J7: 52 | K7: 150 | L7: 210 | M7: 255 | N7: 312.5 | O7: 342.5 | P7: 440 | Q7: 470
A8: 74 | B8: 307.5 | C8: 425 | D8: 520 | E8: 612.5 | F8: 642.5 | G8: 770 | H8: 790 | J8: 57 | K8: 162.5 | L8: 225 | M8: 275 | N8: 342.5 | O8: 372.5 | P8: 480 | Q8: 500
A9: 83 | B9: 322.5 | C9: 452.5 | D9: 550 | E9: 672.5 | F9: 702.5 | G9: 820 | H9: 840 | J9: 63 | K9: 172.5 | L9: 240 | M9: 292.5 | N9: 362.5 | O9: 392.5 | P9: 510 | Q9: 530
A10: 93 | B10: 342.5 | C10: 477.5 | D10: 580 | E10: 692.5 | F10: 727.5 | G10: 870 | H10: 900 | J10: 69 | K10: 180 | L10: 252.5 | M10: 305 | N10: 372.5 | O10: 402.5 | P10: 540 | Q10: 570
A11: 105 | B11: 362.5 | C11: 507.5 | D11: 615 | E11: 717.5 | F11: 742.5 | G11: 930 | H11: 960 | J11: 76 | K11: 190 | L11: 267.5 | M11: 322.5 | N11: 377.5 | O11: 412.5 | P11: 560 | Q11: 590
A12: 120 | B12: 375 | C12: 525 | D12: 635 | E12: 737.5 | F12: 767.5 | G12: 970 | H12: 1000 | J12: 84 | K12: 197.5 | L12: 277.5 | M12: 335 | N12: 387.5 | O12: 425 | P12: 570 | Q12: 600
A13: 120 + | B13: 385 | C13: 540 | D13: 655 | E13: 782.5 | F13: 802.5 | G13: 1000 | H13: 1015 | J13: 84+ | K13: 200 | L13: 280 | M13: 340 | N13: 392.5 | O13: 430 | P13: 580 | Q13: 610
B14: les performances inferieures au niveau régionale sont classées par défaut comme niveau départemental
A15: M1 masculin | J15: M1 féminine
A16: Catég. | B16: R3 | C16: R2 | D16: R1 | E16: N2 | F16: N1 | J16: Catég. | K16: R3 | L16: R2 | M16: R1 | N16: N2 | O16: N1
A17: 59 | B17: 190 | C17: 265 | D17: 320 | E17: =F17-10 -> 367.5 | F17: 377.5 | J17: 47 | K17: 112.5 | L17: 160 | M17: 192.5 | N17: =O17-10 -> 217.5 | O17: 227.5
A18: 66 | B18: 225 | C18: 315 | D18: 380 | E18: =F18-10 -> 437.5 | F18: 447.5 | J18: 52 | K18: 122.5 | L18: 172.5 | M18: 210 | N18: =O18-10 -> 237.5 | O18: 247.5
A19: 74 | B19: 245 | C19: 345 | D19: 415 | E19: =F19-15 -> 475 | F19: 490 | J19: 57 | K19: 132.5 | L19: 185 | M19: 225 | N19: =O19-15 -> 250 | O19: 265
A20: 83 | B20: 275 | C20: 385 | D20: 470 | E20: =F20-15 -> 537.5 | F20: 552.5 | J20: 63 | K20: 135 | L20: 190 | M20: 230 | N20: =O20-15 -> 255 | O20: 270
A21: 93 | B21: 292.5 | C21: 410 | D21: 497.5 | E21: =F21-20 -> 565 | F21: 585 | J21: 69 | K21: 140 | L21: 197.5 | M21: 237.5 | N21: =O21-20 -> 260 | O21: 280
A22: 105 | B22: 307.5 | C22: 430 | D22: 522.5 | E22: =F22-20 -> 595 | F22: 615 | J22: 76 | K22: 142.5 | L22: 202.5 | M22: 245 | N22: =O22-20 -> 267.5 | O22: 287.5
A23: 120 | B23: 317.5 | C23: 445 | D23: 540 | E23: =F23-25 -> 610 | F23: 635 | J23: 84 | K23: 152.5 | L23: 212.5 | M23: 257.5 | N23: =O23-25 -> 277.5 | O23: 302.5
A24: 120 + | B24: 340 | C24: 475 | D24: 577.5 | E24: =F24-30 -> 650 | F24: 680 | J24: 84 + | K24: 162.5 | L24: 225 | M24: 275 | N24: =O24-30 -> 292.5 | O24: 322.5
B25: les performances inferieures au niveau régionale sont classées par défaut comme niveau départemental
A26: M2 masculin | J26: M2 féminine
A27: Catég. | B27: R3 | C27: R2 | D27: R1 | E27: N2 | F27: N1 | J27: Catég. | K27: R3 | L27: R2 | M27: R1 | N27: N2 | O27: N1
A28: 59 | B28: 170 | C28: 237.5 | D28: 290 | E28: =F28-10 -> 330 | F28: 340 | J28: 47 | K28: 102.5 | L28: 142.5 | M28: 175 | N28: =O28-10 -> 195 | O28: 205
A29: 66 | B29: 202.5 | C29: 280 | D29: 342.5 | E29: =F29-10 -> 392.5 | F29: 402.5 | J29: 52 | K29: 112.5 | L29: 155 | M29: 190 | N29: =O29-10 -> 212.5 | O29: 222.5
A30: 74 | B30: 220 | C30: 310 | D30: 375 | E30: =F30-15 -> 427.5 | F30: 442.5 | J30: 57 | K30: 120 | L30: 167.5 | M30: 202.5 | N30: =O30-15 -> 225 | O30: 240
A31: 83 | B31: 250 | C31: 350 | D31: 422.5 | E31: =F31-15 -> 482.5 | F31: 497.5 | J31: 63 | K31: 122.5 | L31: 170 | M31: 207.5 | N31: =O31-15 -> 227.5 | O31: 242.5
A32: 93 | B32: 262.5 | C32: 367.5 | D32: 445 | E32: =F32-20 -> 505 | F32: 525 | J32: 69 | K32: 125 | L32: 175 | M32: 212.5 | N32: =O32-20 -> 230 | O32: 250
A33: 105 | B33: 277.5 | C33: 390 | D33: 472.5 | E33: =F33-20 -> 535 | F33: 555 | J33: 76 | K33: 130 | L33: 180 | M33: 217.5 | N33: =O33-20 -> 237.5 | O33: 257.5
A34: 120 | B34: 285 | C34: 400 | D34: 485 | E34: =F34-25 -> 547.5 | F34: 572.5 | J34: 84 | K34: 137.5 | L34: 190 | M34: 232.5 | N34: =O34-25 -> 247.5 | O34: 272.5
A35: 120 + | B35: 305 | C35: 427.5 | D35: 520 | E35: =F35-30 -> 582.5 | F35: 612.5 | J35: 84 + | K35: 145 | L35: 202.5 | M35: 247.5 | N35: =O35-30 -> 260 | O35: 290
B36: les performances inferieures au niveau régionale sont classées par défaut comme niveau départemental
A37: M3 masculin | J37: M3 féminine
A38: Catég. | B38: R3 | C38: R2 | D38: R1 | E38: N2 | F38: N1 | J38: Catég. | K38: R3 | L38: R2 | M38: R1 | N38: N2 | O38: N1
A39: 59 | B39: 150 | C39: 212.5 | D39: 257.5 | E39: =F39-10 -> 292.5 | F39: 302.5 | J39: 47 | K39: 90 | L39: 127.5 | M39: 155 | N39: =O39-10 -> 172.5 | O39: 182.5
A40: 66 | B40: 177.5 | C40: 250 | D40: 302.5 | E40: =F40-10 -> 347.5 | F40: 357.5 | J40: 52 | K40: 100 | L40: 140 | M40: 167.5 | N40: =O40-10 -> 187.5 | O40: 197.5
A41: 74 | B41: 197.5 | C41: 275 | D41: 332.5 | E41: =F41-15 -> 377.5 | F41: 392.5 | J41: 57 | K41: 107.5 | L41: 147.5 | M41: 180 | N41: =O41-15 -> 197.5 | O41: 212.5
A42: 83 | B42: 220 | C42: 310 | D42: 375 | E42: =F42-15 -> 427.5 | F42: 442.5 | J42: 63 | K42: 110 | L42: 152.5 | M42: 185 | N42: =O42-15 -> 202.5 | O42: 217.5
A43: 93 | B43: 232.5 | C43: 327.5 | D43: 397.5 | E43: =F43-20 -> 447.5 | F43: 467.5 | J43: 69 | K43: 112.5 | L43: 157.5 | M43: 190 | N43: =O43-20 -> 205 | O43: 225
A44: 105 | B44: 245 | C44: 345 | D44: 417.5 | E44: =F44-20 -> 472.5 | F44: 492.5 | J44: 76 | K44: 115 | L44: 160 | M44: 195 | N44: =O44-20 -> 210 | O44: 230
A45: 120 | B45: 255 | C45: 355 | D45: 430 | E45: =F45-25 -> 482.5 | F45: 507.5 | J45: 84 | K45: 120 | L45: 170 | M45: 207.5 | N45: =O45-25 -> 217.5 | O45: 242.5
A46: 120 + | B46: 272.5 | C46: 380 | D46: 462.5 | E46: =F46-30 -> 515 | F46: 545 | J46: 84 + | K46: 127.5 | L46: 180 | M46: 217.5 | N46: =O46-30 -> 227.5 | O46: 257.5
B47: les performances inferieures au niveau régionale sont classées par défaut comme niveau départemental
A48: M4 masculin | J48: M4 féminine
A49: Catég. | B49: R3 | C49: R2 | D49: R1 | E49: N2 | F49: N1 | J49: Catég. | K49: R3 | L49: R2 | M49: R1 | N49: N2 | O49: N1
A50: 59 | B50: 112.5 | C50: 160 | D50: 192.5 | E50: =F50-10 -> 217.5 | F50: 227.5 | J50: 47 | K50: 67.5 | L50: 97.5 | M50: 115 | N50: =O50-10 -> 127.5 | O50: 137.5
A51: 66 | B51: 132.5 | C51: 187.5 | D51: 227.5 | E51: =F51-10 -> 257.5 | F51: 267.5 | J51: 52 | K51: 72.5 | L51: 102.5 | M51: 125 | N51: =O51-10 -> 137.5 | O51: 147.5
A52: 74 | B52: 147.5 | C52: 205 | D52: 250 | E52: =F52-15 -> 280 | F52: 295 | J52: 57 | K52: 80 | L52: 112.5 | M52: 135 | N52: =O52-15 -> 145 | O52: 160
A53: 83 | B53: 165 | C53: 230 | D53: 280 | E53: =F53-15 -> 315 | F53: 330 | J53: 63 | K53: 82.5 | L53: 115 | M53: 137.5 | N53: =O53-15 -> 147.5 | O53: 162.5
A54: 93 | B54: 175 | C54: 245 | D54: 297.5 | E54: =F54-20 -> 330 | F54: 350 | J54: 69 | K54: 85 | L54: 117.5 | M54: 142.5 | N54: =O54-15 -> 152.5 | O54: 167.5
A55: 105 | B55: 185 | C55: 260 | D55: 315 | E55: =F55-20 -> 350 | F55: 370 | J55: 76 | K55: 87.5 | L55: 120 | M55: 145 | N55: =O55-15 -> 157.5 | O55: 172.5
A56: 120 | B56: 190 | C56: 267.5 | D56: 322.5 | E56: =F56-25 -> 355 | F56: 380 | J56: 84 | K56: 92.5 | L56: 127.5 | M56: 155 | N56: =O56-20 -> 162.5 | O56: 182.5
A57: 120 + | B57: 202.5 | C57: 285 | D57: 345 | E57: =F57-30 -> 377.5 | F57: 407.5 | J57: 84 + | K57: 97.5 | L57: 137.5 | M57: 165 | N57: =O57-20 -> 175 | O57: 195

Sheet Cat. d'âge
A1: Catégories d'âge valables à partir du 01/01/2025 et jusqu'au 31/12/2025 | G1: Catégories d'âge valables à partir du 01/01/2026 et jusqu'au 31/12/2027
A3: Catégories d'âge Homme/Femme FA | D3: Catégories d'âge Homme/Femme PL | G3: Catégories d'âge Homme/Femme FA | J3: Catégories d'âge Homme/Femme PL | M3: LIGUES
A4: Année de naissance | B4: Catégorie | D4: Année de naissance | E4: Catégorie | G4: Année de naissance | H4: Catégorie | J4: Année de naissance | K4: Catégorie
A5: 2016-01-01 | B5: INTERDIT | D5: 2016-01-01 | E5: INTERDIT | G5: 2016-01-01 | H5: INTERDIT | J5: 2016-01-01 | K5: INTERDIT | M5: AUVERGNE RHONE-ALPES
A6: 2015-01-01 | B6: INTERDIT | D6: 2015-01-01 | E6: INTERDIT | G6: 2015-01-01 | H6: INTERDIT | J6: 2015-01-01 | K6: INTERDIT | M6: BOURGOGNE FRANCHE-COMTE
A7: 2014-01-01 | B7: INTERDIT | D7: 2014-01-01 | E7: INTERDIT | G7: 2014-01-01 | H7: INTERDIT | J7: 2014-01-01 | K7: INTERDIT | M7: BRETAGNE
A8: 2013-01-01 | B8: INTERDIT | D8: 2013-01-01 | E8: INTERDIT | G8: 2013-01-01 | H8: INTERDIT | J8: 2013-01-01 | K8: INTERDIT | M8: CENTRE-VAL DE LOIRE
A9: 2012-01-01 | B9: INTERDIT | D9: 2012-01-01 | E9: INTERDIT | G9: 2012-01-01 | H9: SJR | J9: 2012-01-01 | K9: INTERDIT | M9: CORSE
A10: 2011-01-01 | B10: SJR | D10: 2011-01-01 | E10: INTERDIT | G10: 2011-01-01 | H10: SJR | J10: 2011-01-01 | K10: INTERDIT | M10: GRAND EST
A11: 2010-01-01 | B11: SJR | D11: 2010-01-01 | E11: INTERDIT | G11: 2010-01-01 | H11: SJR | J11: 2010-01-01 | K11: INTERDIT | M11: GUADELOUPE
A12: 2009-01-01 | B12: SJR | D12: 2009-01-01 | E12: INTERDIT | G12: 2009-01-01 | H12: SJR | J12: 2009-01-01 | K12: INTERDIT | M12: GUYANE
A13: 2008-01-01 | B13: SJR | D13: 2008-01-01 | E13: INTERDIT | G13: 2008-01-01 | H13: SJR | J13: 2008-01-01 | K13: INTERDIT | M13: HAUTS DE France
A14: 2007-01-01 | B14: SJR | D14: 2007-01-01 | E14: INTERDIT | G14: 2007-01-01 | H14: JR | J14: 2007-01-01 | K14: JR | M14: ILE DE France
A15: 2006-01-01 | B15: JR | D15: 2006-01-01 | E15: JR | G15: 2006-01-01 | H15: JR | J15: 2006-01-01 | K15: JR | M15: La REUNION
A16: 2005-01-01 | B16: JR | D16: 2005-01-01 | E16: JR | G16: 2005-01-01 | H16: JR | J16: 2005-01-01 | K16: JR | M16: LIGERIENNE
A17: 2004-01-01 | B17: JR | D17: 2004-01-01 | E17: JR | G17: 2004-01-01 | H17: JR | J17: 2004-01-01 | K17: JR | M17: MARTINIQUE
A18: 2003-01-01 | B18: JR | D18: 2003-01-01 | E18: JR | G18: 2003-01-01 | H18: JR | J18: 2003-01-01 | K18: JR | M18: MAYOTTE
A19: 2002-01-01 | B19: JR | D19: 2002-01-01 | E19: JR | G19: 2002-01-01 | H19: SNR | J19: 2002-01-01 | K19: SNR | M19: NOUVELLE AQUITAINE
A20: 2001-01-01 | B20: SNR | D20: 2001-01-01 | E20: SNR | G20: 2001-01-01 | H20: SNR | J20: 2001-01-01 | K20: SNR | M20: NOUVELLE CALEDONIE
A21: 2000-01-01 | B21: SNR | D21: 2000-01-01 | E21: SNR | G21: 2000-01-01 | H21: SNR | J21: 2000-01-01 | K21: SNR | M21: NORMANDIE
A22: 1999-01-01 | B22: SNR | D22: 1999-01-01 | E22: SNR | G22: 1999-01-01 | H22: SNR | J22: 1999-01-01 | K22: SNR | M22: OCCITANIE
A23: 1998-01-01 | B23: SNR | D23: 1998-01-01 | E23: SNR | G23: 1998-01-01 | H23: SNR | J23: 1998-01-01 | K23: SNR | M23: POLYNESIE FRANCAISE
A24: 1997-01-01 | B24: SNR | D24: 1997-01-01 | E24: SNR | G24: 1997-01-01 | H24: SNR | J24: 1997-01-01 | K24: SNR | M24: PROVENCE ALPES COTE D AZUR
A25: 1996-01-01 | B25: SNR | D25: 1996-01-01 | E25: SNR | G25: 1996-01-01 | H25: SNR | J25: 1996-01-01 | K25: SNR | M25: ST PIERRE ET MIQUELON
A26: 1995-01-01 | B26: SNR | D26: 1995-01-01 | E26: SNR | G26: 1995-01-01 | H26: SNR | J26: 1995-01-01 | K26: SNR
A27: 1994-01-01 | B27: SNR | D27: 1994-01-01 | E27: SNR | G27: 1994-01-01 | H27: SNR | J27: 1994-01-01 | K27: SNR
A28: 1993-01-01 | B28: SNR | D28: 1993-01-01 | E28: SNR | G28: 1993-01-01 | H28: SNR | J28: 1993-01-01 | K28: SNR
A29: 1992-01-01 | B29: SNR | D29: 1992-01-01 | E29: SNR | G29: 1992-01-01 | H29: SNR | J29: 1992-01-01 | K29: SNR
A30: 1991-01-01 | B30: SNR | D30: 1991-01-01 | E30: SNR | G30: 1991-01-01 | H30: SNR | J30: 1991-01-01 | K30: SNR
A31: 1990-01-01 | B31: SNR | D31: 1990-01-01 | E31: SNR | G31: 1990-01-01 | H31: SNR | J31: 1990-01-01 | K31: SNR
A32: 1989-01-01 | B32: SNR | D32: 1989-01-01 | E32: SNR | G32: 1989-01-01 | H32: SNR | J32: 1989-01-01 | K32: SNR
A33: 1988-01-01 | B33: SNR | D33: 1988-01-01 | E33: SNR | G33: 1988-01-01 | H33: SNR | J33: 1988-01-01 | K33: SNR
A34: 1987-01-01 | B34: SNR | D34: 1987-01-01 | E34: SNR | G34: 1987-01-01 | H34: SNR | J34: 1987-01-01 | K34: SNR
A35: 1986-01-01 | B35: SNR | D35: 1986-01-01 | E35: SNR | G35: 1986-01-01 | H35: M1 | J35: 1986-01-01 | K35: M1
A36: 1985-01-01 | B36: M1 | D36: 1985-01-01 | E36: M1 | G36: 1985-01-01 | H36: M1 | J36: 1985-01-01 | K36: M1
A37: 1984-01-01 | B37: M1 | D37: 1984-01-01 | E37: M1 | G37: 1984-01-01 | H37: M1 | J37: 1984-01-01 | K37: M1
A38: 1983-01-01 | B38: M1 | D38: 1983-01-01 | E38: M1 | G38: 1983-01-01 | H38: M1 | J38: 1983-01-01 | K38: M1
A39: 1982-01-01 | B39: M1 | D39: 1982-01-01 | E39: M1 | G39: 1982-01-01 | H39: M1 | J39: 1982-01-01 | K39: M1
A40: 1981-01-01 | B40: M1 | D40: 1981-01-01 | E40: M1 | G40: 1981-01-01 | H40: M1 | J40: 1981-01-01 | K40: M1
A41: 1980-01-01 | B41: M1 | D41: 1980-01-01 | E41: M1 | G41: 1980-01-01 | H41: M1 | J41: 1980-01-01 | K41: M1
A42: 1979-01-01 | B42: M1 | D42: 1979-01-01 | E42: M1 | G42: 1979-01-01 | H42: M1 | J42: 1979-01-01 | K42: M1
A43: 1978-01-01 | B43: M1 | D43: 1978-01-01 | E43: M1 | G43: 1978-01-01 | H43: M1 | J43: 1978-01-01 | K43: M1
A44: 1977-01-01 | B44: M1 | D44: 1977-01-01 | E44: M1 | G44: 1977-01-01 | H44: M1 | J44: 1977-01-01 | K44: M1
A45: 1976-01-01 | B45: M1 | D45: 1976-01-01 | E45: M1 | G45: 1976-01-01 | H45: M2 | J45: 1976-01-01 | K45: M2
A46: 1975-01-01 | B46: M2 | D46: 1975-01-01 | E46: M2 | G46: 1975-01-01 | H46: M2 | J46: 1975-01-01 | K46: M2
A47: 1974-01-01 | B47: M2 | D47: 1974-01-01 | E47: M2 | G47: 1974-01-01 | H47: M2 | J47: 1974-01-01 | K47: M2
A48: 1973-01-01 | B48: M2 | D48: 1973-01-01 | E48: M2 | G48: 1973-01-01 | H48: M2 | J48: 1973-01-01 | K48: M2
A49: 1972-01-01 | B49: M2 | D49: 1972-01-01 | E49: M2 | G49: 1972-01-01 | H49: M2 | J49: 1972-01-01 | K49: M2
A50: 1971-01-01 | B50: M2 | D50: 1971-01-01 | E50: M2 | G50: 1971-01-01 | H50: M2 | J50: 1971-01-01 | K50: M2
A51: 1970-01-01 | B51: M2 | D51: 1970-01-01 | E51: M2 | G51: 1970-01-01 | H51: M2 | J51: 1970-01-01 | K51: M2
A52: 1969-01-01 | B52: M2 | D52: 1969-01-01 | E52: M2 | G52: 1969-01-01 | H52: M2 | J52: 1969-01-01 | K52: M2
A53: 1968-01-01 | B53: M2 | D53: 1968-01-01 | E53: M2 | G53: 1968-01-01 | H53: M2 | J53: 1968-01-01 | K53: M2
A54: 1967-01-01 | B54: M2 | D54: 1967-01-01 | E54: M2 | G54: 1967-01-01 | H54: M2 | J54: 1967-01-01 | K54: M2
A55: 1966-01-01 | B55: M2 | D55: 1966-01-01 | E55: M2 | G55: 1966-01-01 | H55: M3 | J55: 1966-01-01 | K55: M3
A56: 1965-01-01 | B56: M3 | D56: 1965-01-01 | E56: M3 | G56: 1965-01-01 | H56: M3 | J56: 1965-01-01 | K56: M3
A57: 1964-01-01 | B57: M3 | D57: 1964-01-01 | E57: M3 | G57: 1964-01-01 | H57: M3 | J57: 1964-01-01 | K57: M3
A58: 1963-01-01 | B58: M3 | D58: 1963-01-01 | E58: M3 | G58: 1963-01-01 | H58: M3 | J58: 1963-01-01 | K58: M3
A59: 1962-01-01 | B59: M3 | D59: 1962-01-01 | E59: M3 | G59: 1962-01-01 | H59: M3 | J59: 1962-01-01 | K59: M3
A60: 1961-01-01 | B60: M3 | D60: 1961-01-01 | E60: M3 | G60: 1961-01-01 | H60: M3 | J60: 1961-01-01 | K60: M3
A61: 1960-01-01 | B61: M3 | D61: 1960-01-01 | E61: M3 | G61: 1960-01-01 | H61: M3 | J61: 1960-01-01 | K61: M3
A62: 1959-01-01 | B62: M3 | D62: 1959-01-01 | E62: M3 | G62: 1959-01-01 | H62: M3 | J62: 1959-01-01 | K62: M3
A63: 1958-01-01 | B63: M3 | D63: 1958-01-01 | E63: M3 | G63: 1958-01-01 | H63: M3 | J63: 1958-01-01 | K63: M3
A64: 1957-01-01 | B64: M3 | D64: 1957-01-01 | E64: M3 | G64: 1957-01-01 | H64: M3 | J64: 1957-01-01 | K64: M3
A65: 1956-01-01 | B65: M3 | D65: 1956-01-01 | E65: M3 | G65: 1956-01-01 | H65: M4 | J65: 1956-01-01 | K65: M4
A66: 1955-01-01 | B66: M4 | D66: 1955-01-01 | E66: M4 | G66: 1955-01-01 | H66: M4 | J66: 1955-01-01 | K66: M4
A67: 1954-01-01 | B67: M4 | D67: 1954-01-01 | E67: M4 | G67: 1954-01-01 | H67: M4 | J67: 1954-01-01 | K67: M4
A68: 1953-01-01 | B68: M4 | D68: 1953-01-01 | E68: M4 | G68: 1953-01-01 | H68: M4 | J68: 1953-01-01 | K68: M4
A69: 1952-01-01 | B69: M4 | D69: 1952-01-01 | E69: M4 | G69: 1952-01-01 | H69: M4 | J69: 1952-01-01 | K69: M4
A70: 1951-01-01 | B70: M4 | D70: 1951-01-01 | E70: M4 | G70: 1951-01-01 | H70: M4 | J70: 1951-01-01 | K70: M4
A71: 1950-01-01 | B71: M4 | D71: 1950-01-01 | E71: M4 | G71: 1950-01-01 | H71: M4 | J71: 1950-01-01 | K71: M4
A72: 1949-01-01 | B72: M4 | D72: 1949-01-01 | E72: M4 | G72: 1949-01-01 | H72: M4 | J72: 1949-01-01 | K72: M4
A73: 1948-01-01 | B73: M4 | D73: 1948-01-01 | E73: M4 | G73: 1948-01-01 | H73: M4 | J73: 1948-01-01 | K73: M4
A74: 1947-01-01 | B74: M4 | D74: 1947-01-01 | E74: M4 | G74: 1947-01-01 | H74: M4 | J74: 1947-01-01 | K74: M4
A75: 1946-01-01 | B75: M4 | D75: 1946-01-01 | E75: M4 | G75: 1946-01-01 | H75: M4 | J75: 1946-01-01 | K75: M4
A76: 1945-01-01 | B76: M4 | D76: 1945-01-01 | E76: M4 | G76: 1945-01-01 | H76: M4 | J76: 1945-01-01 | K76: M4
A77: 1944-01-01 | B77: M4 | D77: 1944-01-01 | E77: M4 | G77: 1944-01-01 | H77: M4 | J77: 1944-01-01 | K77: M4
A78: 1943-01-01 | B78: M4 | D78: 1943-01-01 | E78: M4 | G78: 1943-01-01 | H78: M4 | J78: 1943-01-01 | K78: M4
A79: 1942-01-01 | B79: M4 | D79: 1942-01-01 | E79: M4 | G79: 1942-01-01 | H79: M4 | J79: 1942-01-01 | K79: M4
A80: 1941-01-01 | B80: M4 | D80: 1941-01-01 | E80: M4 | G80: 1941-01-01 | H80: M4 | J80: 1941-01-01 | K80: M4
A81: 1940-01-01 | B81: M4 | D81: 1940-01-01 | E81: M4 | G81: 1940-01-01 | H81: M4 | J81: 1940-01-01 | K81: M4
A82: 1939-01-01 | B82: M4 | D82: 1939-01-01 | E82: M4 | G82: 1939-01-01 | H82: M4 | J82: 1939-01-01 | K82: M4
A83: 1938-01-01 | B83: M4 | D83: 1938-01-01 | E83: M4 | G83: 1938-01-01 | H83: M4 | J83: 1938-01-01 | K83: M4
A84: 1937-01-01 | B84: M4 | D84: 1937-01-01 | E84: M4 | G84: 1937-01-01 | H84: M4 | J84: 1937-01-01 | K84: M4
A85: 1936-01-01 | B85: M4 | D85: 1936-01-01 | E85: M4 | G85: 1936-01-01 | H85: M4 | J85: 1936-01-01 | K85: M4
A86: 1935-01-01 | B86: M4 | D86: 1935-01-01 | E86: M4 | G86: 1935-01-01 | H86: M4 | J86: 1935-01-01 | K86: M4
A87: 1934-01-01 | B87: M4 | D87: 1934-01-01 | E87: M4 | G87: 1934-01-01 | H87: M4 | J87: 1934-01-01 | K87: M4
A88: 1933-01-01 | B88: M4 | D88: 1933-01-01 | E88: M4 | G88: 1933-01-01 | H88: M4 | J88: 1933-01-01 | K88: M4
A89: 1932-01-01 | B89: M4 | D89: 1932-01-01 | E89: M4 | G89: 1932-01-01 | H89: M4 | J89: 1932-01-01 | K89: M4
A90: 1931-01-01 | B90: M4 | D90: 1931-01-01 | E90: M4 | G90: 1931-01-01 | H90: M4 | J90: 1931-01-01 | K90: M4
A91: 1930-01-01 | B91: M4 | D91: 1930-01-01 | E91: M4 | G91: 1930-01-01 | H91: M4 | J91: 1930-01-01 | K91: M4
A92: 1929-01-01 | B92: M4 | D92: 1929-01-01 | E92: M4 | G92: 1929-01-01 | H92: M4 | J92: 1929-01-01 | K92: M4

Sheet Records_FA_F
A1: Records FA Femmes
A2: Catégorie | C2: Squat | F2: Développé-Couché | I2: Soulevé de Terre | L2: TOTAL
C3: Athlète | D3: Poids | E3: Date | F3: Athlète | G3: Poids | H3: Date | I3: Athlète | J3: Poids | K3: Date | L3: Athlète | M3: Poids | N3: Date
A4: -43kg | B4: Subjunior | C4: Serneels Lisa | D4: 78.5 | E4: 2025 Villenave d'Ornon (Fr) | F4: Serneels Lisa | G4: 52 | H4: 2025 Villenave d'Ornon(Fr) | I4: Serneels Lisa | J4: 115 | K4: 202 Villenave d'ornon (Fr) | L4: Serneels Lisa | M4: 245.5 | N4: 2025 Villenave d'Ornon (Fr)
A5: -43kg | B5: Junior | C5: Trinquart Flavie | D5: 102.5 | E5: 2025 Villenave d'Ornon (Fr) | F5: Hernandez Loïcia | G5: 65.5 | H5: 2025 Villenave d'Ornon (Fr) | I5: Trinquart Flavie | J5: 128.5 | K5: 2025 Villenave d'Ornon (Fr) | L5: Hernandez Loïcia | M5: 288.5 | N5: 2025 Villenave d'ornon
A6: -47kg | B6: Subjunior | C6: Chansard Lucie | D6: 105 | E6: 2024 st paul's bay (Malte) | F6: Durand Andrea | G6: 65 | H6: 2012 | I6: Chansard Lucie | J6: 132.5 | K6: 2024 Villepinte (Fr) | L6: Durand Andrea | M6: 292.5 | N6: 2012
A7: -47kg | B7: Junior | C7: Chapon Tiffany | D7: 165.5 | E7: 2024 Druskininkai (Lit) | F7: Chapon Tiffany | G7: 101.5 | H7: 2024 Le Crés (Fr) | I7: Stellato Maevane | J7: 173 | K7: 2024 Villepinte (Fr) | L7: Chapon Tiffany | M7: 433 | N7: 2024 Druskininkai (Lit)
A8: -47kg | B8: Open | C8: Chapon Tiffany | D8: 165.5 | E8: 2024 Druskininkai (Lit) | F8: Chapon Tiffany | G8: 102 | H8: 2025 Chemnitz (Ger) | I8: Stellato Maevane | J8: 173 | K8: 2024 Villepinte (Fr) | L8: Chapon Tiffany | M8: 434.5 | N8: 2025 Chemnistz (Ger)
A9: -47kg | B9: Master1 | C9: Legard Stephanie | D9: 125 | E9: 2022 Albi (Fr) | F9: Legard Stephanie | G9: 80 | H9: 2022 Albi (Fr) | I9: Legard Stephanie | J9: 155.5 | K9: 2022 Aulnat (Fr) | L9: Legard Stephanie | M9: 360 | N9: 2022 Albi (Fr)
A10: -47kg | B10: Master2 | C10: Feraud Nathalie | D10: 97.5 | E10: 2018 | F10: Feraud Nathalie | G10: 70 | H10: 2019 | I10: Feraud Nathalie | J10: 127.5 | K10: 2019 | L10: Feraud Nathalie | M10: 292.5 | N10: 2019
A11: -47kg | B11: Master3 | C11: Dutrillaux Marie Claude | D11: 67.5 | E11: 2015 | F11: Dutrillaux Marie Claude | G11: 43 | H11: 2016 | I11: Dutrillaux Marie Claude | J11: 95 | K11: 2015 | L11: Dutrillaux Marie Claude | M11: 205 | N11: 2015
A12: -47kg | B12: Master4
A13: -52kg | B13: Subjunior | C13: Olivier cassandre | D13: 139.5 | E13: 2025 Villenave d'Ornon (Fr) | F13: Olivier Cassandre | G13: 92.5 | H13: 2025 Costa Rica (Cr) | I13: Olivier Cassandre | J13: 163 | K13: 2025 Villenave d'ornon (Fr) | L13: Olivier Cassandre | M13: 393 | N13: 2025 Costa Rica (CR)
A14: -52kg | B14: Junior | C14: Chapon Tiffany | D14: 165.5 | E14: 2022 st germain en lay(fr) | F14: Chapon Tiffany | G14: 95 | H14: 2022 st germain en lay(fr) | I14: Hadrys Camille | J14: 183 | K14: 2023 Cluj Napoca (Ro) | L14: Chapon Tiffany | M14: 430.5 | N14: 2022 st germain en lay(fr)
A15: -52kg | B15: Open | C15: Allabert Noemie | D15: 171.5 | E15: 2023 Sheffield (UK) | F15: Chapon Tiffany | G15: 107.5 | H15: 2025 Chengdu ( Chn) | I15: Allabert Noemie | J15: 200 | K15: 2023 St.Julians (Malta) | L15: Allabert Noemie | M15: 454 | N15: 2023 Sheffield (UK)
A16: -52kg | B16: Master1 | C16: Cabral Angela | D16: 125 | E16: 2025 Albi (Fr) | F16: Bouvard Marianne | G16: 72.5 | H16: 2019 | I16: Cabral Angela | J16: 157.5 | K16: 2025 Albi (Fr) | L16: Cabral Angela | M16: 355 | N16: 2025 Albi (Fr)
A17: -52kg | B17: Master2 | C17: Feraud Nathalie | D17: 107.5 | E17: 2020 Albi (Fr) | F17: Verlaine Geraldine | G17: 73 | H17: 2025 Loos (Fr) | I17: Feraud Nathalie | J17: 132.5 | K17: 2020 Albi (Fr) | L17: Feraud Nathalie | M17: 312.5 | N17: 2020 Albi (Fr)
A18: -52kg | B18: Master3 | C18: Dutrillaux Marie Claude | D18: 80 | E18: 2018 | F18: Dutrillaux Marie Claude | G18: 44 | H18: 2018 | I18: Dutrillaux Marie Claude | J18: 106 | K18: 2018 | L18: Dutrillaux Marie Claude | M18: 230 | N18: 2018
A19: -52kg | B19: Master4
A20: -57kg | B20: Subjunior | C20: Vu Van Maeva | D20: 145 | E20: 2025 Vllenave d'Ornon (Fr) | F20: Paquin Erine | G20: 78.5 | H20: 2025 Villenave d'Ornon (Fr) | I20: De Fuentes Dafnée | J20: 170.5 | K20: 2025 Villenave d'Ornon (Fr) | L20: Gaillard Lilou | M20: 380 | N20: 2025 Villenave d'Ornon (Fr)
A21: -57kg | B21: Junior | C21: Jacob Jade | D21: 188 | E21: 2024 Sheffield (UK) | F21: Jacob Jade | G21: 100 | H21: 2022 Skierniewice (Pol) | I21: Jacob Jade | J21: 231.5 | K21: 2024 Sheffield (UK) | L21: Jacob Jade | M21: 519.5 | N21: 2024 Sheffield (UK)
A22: -57kg | B22: Open | C22: Jacob Jade | D22: 188 | E22: 2024 Sheffield (UK) | F22: Huet Alison | G22: 108 | H22: 2024 Le Crés (Fr) | I22: Jacob Jade | J22: 231.5 | K22: 2024 Sheffield (UK) | L22: Jacob Jade | M22: 519.5 | N22: 2024 Sheffield (UK)
A23: -57kg | B23: Master1 | C23: Cabral Angela | D23: 130 | E23: 2025 Loos (Fr) | F23: Carion Stephanie | G23: 77.5 | H23: 2019 | I23: Cabral Angela | J23: 165 | K23: 2025 Loos (Fr) | L23: Cabral Angela | M23: 370 | N23: 2025 Loos (Fr)
A24: -57kg | B24: Master2 | C24: Feraud Nathalie | D24: 111.5 | E24: 2022 beuzeville (F) | F24: Pracella Marie-Christine | G24: 92.5 | H24: 2018 | I24: Guennec Edith | J24: 150 | K24: 2015 | L24: Cabos Marie France | M24: 321 | N24: 2019
A25: -57kg | B25: Master3 | C25: Guennec Edith | D25: 110 | E25: 2016 | F25: Grouet Molling Lydie | G25: 60.5 | H25: 2024 Blanquefort (F) | I25: Guennec Edith | J25: 155.5 | K25: 2017 | L25: Guennec Edith | M25: 315.5 | N25: 2016
A26: -57kg | B26: Master4
A27: -63kg | B27: Subjunior | C27: Eugenie Samantha | D27: 160 | E27: 2019 Kaunas (lit) | F27: Vautey Marie | G27: 88 | H27: 2025 Villenave d'Ornon | I27: Vautey Marie | J27: 190.5 | K27: 2025 Villenave d'Ornon (Fr) | L27: Eugenie Samantha | M27: 435 | N27: 2019 Kaunas (lit)
A28: -63kg | B28: Junior | C28: Delos Ludivine | D28: 195 | E28: 2023 Nancy (FR) | F28: Peltret Marine | G28: 110 | H28: 2024 Le Crés (Fr) | I28: Jacob Jade | J28: 232 | K28: 2024 Villepinte (fr) | L28: Jacob Jade | M28: 512 | N28: 2024 Villepinte (FR)
A29: -63kg | B29: Open | C29: Bavoil Prescillia | D29: 214 | E29: 2025 Shieffield (UK) | F29: Bavoil Prescillia | G29: 117.5 | H29: 2025 Shieffield (UK) | I29: Jacob Jade | J29: 232 | K29: 2024 Villepinte (Fr) | L29: Bavoil Prescillia | M29: 567.5 | N29: 2024 Druskininkai (Lit)
A30: -63kg | B30: Master1 | C30: Fabre Isabelle | D30: 142.5 | E30: 2025 Loos (Fr) | F30: Carion Stephanie | G30: 88 | H30: 2017 | I30: Bernard Anne | J30: 167.5 | K30: 2025 Cape Town (SA) | L30: Fabre Isabelle | M30: 365 | N30: 2025 Loos (Fr)
A31: -63kg | B31: Master2 | C31: Girot Noemie | D31: 145 | E31: 2025 Loos (Fr) | F31: Girot Noemie | G31: 90 | H31: 2025 Cape Town (SA) | I31: Girot Noemie | J31: 182.5 | K31: 2025 Cape Town (SA) | L31: Girot Noemie | M31: 417.5 | N31: 2025 Cape Town (SA)
A32: -63kg | B32: Master3 | C32: Guennec Edith | D32: 107.5 | E32: 2020 Albi (Fr) | F32: Blondan Daisy | G32: 72.5 | H32: 2019 | I32: Guennec Edith | J32: 157.5 | K32: 2020 Albi (Fr) | L32: Guennec Edith | M32: 320 | N32: 2020 Albi (Fr)
A33: -63kg | B33: Master4
A34: -69kg | B34: Subjunior | C34: Bouvier Elise | D34: 170 | E34: 2024 st paul's bay (Malte) | F34: Grancoin Eliza | G34: 90.5 | H34: 2025 Villenave d'Ornon (Fr) | I34: Camilli Clemence | J34: 181 | K34: 2025 Villenave d'Ornon (Fr) | L34: Bouvier Elise | M34: 440 | N34: 2024 Pilsen (Cze)
A35: -69kg | B35: Junior | C35: Bouchoux Andorina | D35: 202.5 | E35: 2025 Malaga (Sp) | F35: Peyraud Clara | G35: 120 | H35: 2023 St.Julians (Malta) | I35: Peyraud Clara | J35: 237.5 | K35: 2023 Tartu (Est) | L35: Bouchoux Andorina | M35: 547.5 | N35: 2025 Malaga (Sp)
A36: -69kg | B36: Open | C36: Bavoil Prescillia | D36: 225 | E36: 2024 Sheffield (UK) | F36: Bavoil Prescillia | G36: 125 | H36: 2024 Druskininkai (Lit) | I36: Peyraud Clara | J36: 237.5 | K36: 2023 Tartu (Est) | L36: Bavoil Prescillia | M36: 585 | N36: 2024 Sheffield (UK)
A37: -69kg | B37: Master1 | C37: Clavier Emilie | D37: 162.5 | E37: 2025 Albi (Fr) | F37: Clavier Emilie | G37: 100 | H37: 2024 Le Crés (Fr) | I37: Clavier Emilie | J37: 197.5 | K37: 2025 Albi (Fr) | L37: Clavier Emilie | M37: 460 | N37: 2025 Albi (Fr)
A38: -69kg | B38: Master2 | C38: Leccese Florence | D38: 135 | E38: 2024 Malaga (Es) | F38: Leccese Florence | G38: 80 | H38: 2025 Cap Town(SA) | I38: Descours Veronique | J38: 150 | K38: 2022 Beuzeville (F) | L38: Leccese Florence | M38: 342.5 | N38: 2024 Sun City (SA)
A39: -69kg | B39: Master3 | C39: Laure Katia | D39: 97.5 | E39: 2025 Loos (Fr) | F39: Blondan Daisy | G39: 70 | H39: 2021 Pilsen (rc) | I39: Blondan Daisy | J39: 130 | K39: 2023 Puy en Velay (Fr) | L39: Blondan Daisy | M39: 295 | N39: 2023 Puy en Velay (Fr)
A40: -69kg | B40: Master4 | C40: Billard Regine | D40: 70 | E40: 2025 Albi (Fr) | F40: Billard Regine | G40: 35 | H40: 2025 Albi (Fr) | I40: Billard Regine | J40: 105 | K40: 2025 Albi (Fr) | L40: Billard Regine | M40: 210 | N40: 2025 Albi (Fr)
A41: -76kg | B41: Subjunior | C41: Bonneau-Abram Ambre | D41: 172.5 | E41: 2025 Villenave d'Ornon (Fr) | F41: Turbe Agathe | G41: 87.5 | H41: 2024 st paul's bay (Malte) | I41: Turbe Agathe | J41: 185 | K41: 2024 Villepinte (Fr) | L41: Turbe Agathe | M41: 430 | N41: 2024 st paul's bay (Malte)
A42: -76kg | B42: Junior | C42: Mautalen Laura | D42: 200 | E42: 2022 Istanbul (Tu) | F42: Mautalen Laura | G42: 145.5 | H42: 2022 Istanbul (Tu) | I42: Peyraud Clara | J42: 242.5 | K42: 2024 Villepinte (FR) | L42: Peyraud Clara | M42: 567.5 | N42: 2025 Malaga (Sp)
A43: -76kg | B43: Open | C43: Mautalen Laura | D43: 200 | E43: 2022 Istanbul (Tu) | F43: Mautalen Laura | G43: 150 | H43: 2025 Chemnitz (Ger) | I43: Peyraud Clara | J43: 242.5 | K43: 2024 Villepinte (FR) | L43: Mautalen Laura | M43: 590 | N43: 2025 Chemnitz (Ger)
A44: -76kg | B44: Master1 | C44: Afanou Tchada Rosemonde | D44: 142.5 | E44: 2024 Malaga (Es) | F44: Alberti Stephanie | G44: 107.5 | H44: 2023 Puy en Velay (Fr) | I44: Afanou Tchada Rosemonde | J44: 183 | K44: 2024 Blanquefort (F) | L44: Afanou Tchada Rosemonde | M44: 388 | N44: 2024 Blanquefort (F)
A45: -76kg | B45: Master2 | C45: Afanou Tchada Rosemonde | D45: 140 | E45: 2025 Albi (Fr) | F45: Afanou Tchada Rosemonde | G45: 77.5 | H45: 2025 Albi (Fr) | I45: Afanou Tchada Rosemonde | J45: 199 | K45: 2025 Albi (Fr) | L45: Afanou Tchada Rosemonde | M45: 416.5 | N45: 2025 Albi (Fr)
A46: -76kg | B46: Master3 | C46: Labat Framboise | D46: 117.5 | E46: 2025 Loos (Fr) | F46: Labat Framboise | G46: 70 | H46: 2025 Loos (Fr) | I46: Labat Framboise | J46: 155 | K46: 2025 Loos (Fr) | L46: Labat Framboise | M46: 342.5 | N46: 2025 Loos (Fr)
A47: -76kg | B47: Master4
A48: -84kg | B48: Subjunior | C48: Kelle Emma | D48: 120 | E48: 2024 Villepinte (Fr) | F48: Kelle Emma | G48: 70 | H48: 2024 Villepinte (Fr) | I48: Kelle Emma | J48: 135 | K48: 2024 Villepinte (Fr) | L48: Kelle Emma | M48: 325 | N48: 2024 Villepinte (Fr)
A49: -84kg | B49: Junior | C49: Mouchet Emilie | D49: 208 | E49: 2025 Villenave d'Ornon (Fr) | F49: Mouchet Emilie | G49: 135 | H49: 2025 CostaRica (Cr) | I49: Mouchet Emilie | J49: 215 | K49: 2025 Costa Rica (Cr) | L49: Mouchet Emilie | M49: 555 | N49: 2025 Costa Rica (Cr)
A50: -84kg | B50: Open | C50: Millecamps Kelly | D50: 215 | E50: 2022 Albi (Fr) | F50: Mouchet Emilie | G50: 135 | H50: 2025 CostaRica (Cr) | I50: Mouchet Emilie | J50: 215 | K50: 2025 Costa Rica (Cr) | L50: Mouchet Emilie | M50: 555 | N50: 2025 Costa Rica (Cr)
A51: -84kg | B51: Master1 | C51: Etienne Alba | D51: 155 | E51: 2025 Loos (Fr) | F51: Faivre Stephanie | G51: 120 | H51: 2025 Loos (Fr) | I51: Etienne Alba | J51: 182.5 | K51: 2025 Loos (Fr) | L51: Etienne Alba | M51: 412.5 | N51: 2025 Loos (fr)
A52: -84kg | B52: Master2 | C52: Collinot France | D52: 137.5 | E52: 2021 Beuzeville (fr) | F52: Collinot France | G52: 75 | H52: 2021 Beuzeville (fr) | I52: Collinot France | J52: 160 | K52: 2021 Beuzeville (fr) | L52: Collinot France | M52: 372.5 | N52: 2021 Beuzeville (fr)
A53: -84kg | B53: Master3 | C53: Lemarchand Joelle | D53: 90 | E53: 2025 Loos (Fr) | F53: Lemarchand Joelle | G53: 55 | H53: 2025 Albi (Fr) | I53: Lemarchand Joelle | J53: 110 | K53: 2025 Loos (Fr) | L53: Lemarchand Joelle | M53: 255 | N53: 2025 Loos (Fr)
A54: -84kg | B54: Master4
A55: +84kg | B55: Subjunior | C55: Letaief Rachelle | D55: 170 | E55: 2018 | F55: Kelle Emma | G55: 73 | H55: 2025 Villenave d'Ornon (Fr) | I55: Letaief Rachelle | J55: 170 | K55: 2018 | L55: Letaief Rachelle | M55: 410 | N55: 2018
A56: +84kg | B56: Junior | C56: Mmadi Salma | D56: 202.5 | E56: 2023 Budapest (Hu) | F56: Mmadi Salma | G56: 97.5 | H56: 2023 Granjska Gora (Sl) | I56: Kranjska Gora | J56: 195 | K56: 2019 | L56: Mmadi Salma | M56: 487.5 | N56: 2023 Budapest (Hu)
A57: +84kg | B57: Open | C57: Mierger Amelie | D57: 252.5 | E57: 2022 Skierniewice (Pol) | F57: Mierger Amelie | G57: 166.5 | H57: 2024 Druskininkai (Lit) | I57: Mierger Amelie | J57: 240 | K57: 2022 Albi (Fr) | L57: Mierger Amelie | M57: 651.5 | N57: 2024 Druskininkai(Lit)
A58: +84kg | B58: Master1 | F58: Auclair Veronique | G58: 72.5 | H58: 2016 | I58: Auclair Veronique | J58: 127.5 | K58: 2016
A59: +84kg | B59: Master2 | C59: Delande Sonia | D59: 120 | E59: 2025 Loos (Fr) | F59: Auclair Veronique | G59: 70 | H59: 2018 | I59: Delande Sonia | J59: 145 | K59: 2025 Loos (Fr) | L59: Delande Sonia | M59: 322.5 | N59: 2025 Loos (Fr)
A60: +84kg | B60: Master3
A61: +84kg | B61: Master4

Sheet Records FA_H
A1: Records FA Hommes
A2: Catégorie | C2: Squat | F2: Développé-Couché | I2: Soulevé de Terre | L2: TOTAL
C3: Athlète | D3: Poids | E3: Date | F3: Athlète | G3: Poids | H3: Date | I3: Athlète | J3: Poids | K3: Date | L3: Athlète | M3: Poids | N3: Date
A4: -53kg | B4: Subjunior | C4: Lamiot Nathan | D4: 157.5 | E4: 2024 Pilsen (Cze) | F4: Duong Dinh Hy Allan | G4: 102.5 | H4: 2024 st paul's bay (Malte) | I4: Duong Dinh Hy Allan | J4: 246.5 | K4: 2024 st paul's bay ( Malte) | L4: Duong Dinh Hy Allan | M4: 496.5 | N4: 2024 st paul's bay (Malte)
A5: -53kg | B5: Junior | C5: Valette Killian | D5: 170 | E5: 2023 Budapest (Hu) | F5: Dlile Jonas | G5: 110 | H5: 2024 Nancy (Fr) | I5: Valette Killian | J5: 205 | K5: 2023 Budapest (Hu) | L5: Valette Killian | M5: 482.5 | N5: 2023 Budapest (Hu)
A6: -59kg | B6: Subjunior | C6: Taron Adam | D6: 213 | E6: 2025 Villenave d'Ornon (Fr) | F6: Taron Adam | G6: 128 | H6: 2025 Villenave d'Ornon (Fr) | I6: Duong Dinh Hy Allan | J6: 286 | K6: 2025 Costa Rica (Cr) | L6: Duong Dinh Hy Allan | M6: 586 | N6: 2025 Costa Rica (Cr)
A7: -59kg | B7: Junior | C7: Dupuy Noel Valentin | D7: 210 | E7: 2025 Costa Rica (Cr) | F7: Dupuy Noel Valentin | G7: 142.5 | H7: 2025 Costa Rica (Cr) | I7: Dupuy-Noel Valentin | J7: 270 | K7: 2025 Costa Rica (Cr) | L7: Dupuy Noel Valentin | M7: 622.5 | N7: 2025 Costa Rica (Cr)
A8: -59kg | B8: Open | C8: Garcia Antoine | D8: 230 | E8: 2025 Chemnitz (Ger) | F8: Dupuy Noel Valentin | G8: 142.5 | H8: 2025 Costa Rica (Cr) | I8: Duong Dinh Hy Allan | J8: 286 | K8: 2025 Costa Rica (Cr) | L8: Dupuy Noel Valentin | M8: 622.5 | N8: 2025 Costa Rica (Cr)
A9: -59kg | B9: Master1 | C9: Rezaee Wiliam | D9: 177.5 | E9: 2025 Cape Town (SA) | F9: Rezaee Wiliam | G9: 125 | H9: 2025 Cape Town (SA) | I9: Chollet Florian | J9: 195 | K9: 2024 Blanquefort (F) | L9: Rezaee Wiliam | M9: 482.5 | N9: 2025 Cape Town (SA)
A10: -59kg | B10: Master2 | C10: Legard Patrick | D10: 162.5 | E10: 2015 | F10: Marigot Gilles | G10: 112.5 | H10: 2021 Beuzeville (fr) | I10: Legard Patrick | J10: 170.5 | K10: 2016 | L10: Legard Patrick | M10: 417.5 | N10: 2015
A11: -59kg | B11: Master3 | C11: Legard Patrick | D11: 130 | E11: 2019 | F11: Bonnefoy Jean | G11: 92.5 | H11: 2022 Beuzeville (F) | I11: Bonnefoy Jean | J11: 165 | K11: 2022 Beuzeville (F) | L11: Bonnefoy Jean | M11: 385 | N11: 2022 Beuzeville 'F)
A12: -59kg | B12: Master4 | C12: Bonnefoy Jean | D12: 135 | E12: 2024 Malaga (Es) | F12: Bonnefoy Jean | G12: 100.5 | H12: 2024 Blanquefort (F) | I12: Bonnefoy Jean | J12: 165 | K12: 2024 Malaga (Es) | L12: Bonnefoy Jean | M12: 395 | N12: 2024 Malaga (Es)
A13: -66kg | B13: Subjunior | C13: Gautier Etienne | D13: 215.5 | E13: 2024 Villepinte (Fr) | F13: Benbachir Khaled | G13: 140 | H13: 2019 Helsingborg (Sw) | I13: Vigneron Nathan | J13: 270.5 | K13: 2025 Costa Rica (Cr) | L13: Vigneron Nathan | M13: 610.5 | N13: 2025 Costa Rica (Cr)
A14: -66kg | B14: Junior | C14: Cialdella Sacha | D14: 240.5 | E14: 2025 Villenave d'Ornon (Fr) | F14: Vigouroux Brandon | G14: 162.5 | H14: 2021 Port la Nouvelle(fr) | I14: Bruzzese Leoluca | J14: 287.5 | K14: 2025 Villenave d'Ornon (Fr) | L14: Bruzzese Leoluca | M14: 653.5 | N14: 2025 Villenave d'Ornon (Fr)
A15: -66kg | B15: Open | C15: Tarinidis Panagiotis | D15: 252.5 | E15: 2021 Port la Nouvelle(fr) | F15: Tarinidis Panagiotis | G15: 178 | H15: 2024 Le Crés (Fr) | I15: El Belghitti Hassan | J15: 298 | K15: 2019 | L15: Tarinidis Panagiotis | M15: 713 | N15: 2024 Le Crés (Fr)
A16: -66kg | B16: Master1 | C16: El Belghitti Hassan | D16: 220 | E16: 2018 | F16: Bernard Michael | G16: 155 | H16: 2018 | I16: El Belghitti Hassan | J16: 298 | K16: 2019 | L16: El Belghitti Hassan | M16: 655 | N16: 2018
A17: -66kg | B17: Master2 | C17: Jouveaux Franck | D17: 200 | E17: 2024 Blanquefort (F) | F17: Bernard Michael | G17: 145 | H17: 2020 Albi (Fr) | I17: Jouveaux Franck | J17: 225 | K17: 2022 Albi (Fr) | L17: Jouveaux Franck | M17: 532.5 | N17: 2022 Albi (Fr)
A18: -66kg | B18: Master3 | C18: Auberval Georges | D18: 160 | E18: 2018 | F18: Houri Ahmed | G18: 110.5 | H18: 2025 Loos (Fr) | I18: Cuvilier Alain | J18: 190 | K18: 2017 | L18: Bonnefoy Jean | M18: 425 | N18: 2018
A19: -66kg | B19: Master4 | C19: Mahauda Gontran | D19: 127.5 | E19: 2018 | F19: Henry Marc | G19: 88 | H19: 2021 Beuzeville (fr) | I19: Cuvilier Alain | J19: 167.5 | K19: 2025 Loos (Fr) | L19: Mahauda Gontran | M19: 380.5 | N19: 2018
A20: -74kg | B20: Subjunior | C20: Daoudi Adam | D20: 243 | E20: 2023 Budapest (Hu) | F20: Benbachir Khaled | G20: 165.5 | H20: 2019 Kaunas (lit) | I20: Al Attiya Ethan | J20: 273 | K20: 2024 Villepinte (Fr) | L20: Murand Antonin | M20: 642.5 | N20: 2025 Villenave d'Ornon (Fr)
A21: -74kg | B21: Junior | C21: Bertrand Balthazar | D21: 285 | E21: 2025 San Jose (CR) | F21: Poyet Bastien | G21: 195 | H21: 2016 | I21: Sollima Enzo | J21: 308.5 | K21: 2025 Villenave d'Ornon (Fr) | L21: Bertrand Balthazar | M21: 765 | N21: 2025 San Jose (CR)
A22: -74kg | B22: Open | C22: Bertrand Balthazar | D22: 285 | E22: 2025 San Jose (CR) | F22: Poinson Adrien | G22: 210.5 | H22: 2015 | I22: Gaignet Guillaume | J22: 325.5 | K22: 2024 Le Crés (Fr) | L22: Bertrand Balthazar | M22: 765 | N22: 2025 San Jose (CR)
A23: -74kg | B23: Master1 | C23: El Belghitti Hassan | D23: 240 | E23: 2015 | F23: Halbot Vincent | G23: 150 | H23: 2015 | I23: El Belghitti Hassan | J23: 308.5 | K23: 2021 Port la Nouvelle(fr) | L23: El Belghitti Hassan | M23: 695 | N23: 2015
A24: -74kg | B24: Master2 | C24: Baali Kader | D24: 226 | E24: 2024 Malaga (Es) | F24: Bernard Michael | G24: 155 | H24: 2022 Beuzeville (F) | I24: Baali Kader | J24: 256.5 | K24: 2019 | L24: Baali Kader | M24: 626.5 | N24: 2019
A25: -74kg | B25: Master3 | C25: Voisin Christian | D25: 207 | E25: 2018 | F25: Voisin Christian | G25: 133 | H25: 2016 | I25: Voisin Christian | J25: 222.5 | K25: 2017 | L25: Voisin Christian | M25: 555 | N25: 2016
A26: -74kg | B26: Master4 | C26: Forget Bernard | D26: 160 | E26: 2019 | F26: Feraud Guylhem | G26: 110 | H26: 2015 | I26: Forget Bernard | J26: 200 | K26: 2019 | L26: Couturier Claude | M26: 445 | N26: 2022 Beuzeville 'F)
A27: -83kg | B27: Subjunior | C27: Baiden Richmond | D27: 247.5 | E27: 2019 | F27: Baiden Richmont | G27: 170.5 | H27: 2019 Kaunas (lit) | I27: Baiden Richmont | J27: 285 | K27: 2019 Kaunas (lit) | L27: Baiden Richmont | M27: 703 | N27: 2019 Kaunas (lit)
A28: -83kg | B28: Junior | C28: Daoudi Adam | D28: 284 | E28: 2025 Villenave d'Ornon (Fr) | F28: Benbachir Khaled | G28: 192.5 | H28: 2024 Le Crés (Fr) | I28: Eygonet Calixte | J28: 330 | K28: 2024 Le Crés (Fr) | L28: Czaplicki Thomas | M28: 765.5 | N28: 2024 Nancy (Fr)
A29: -83kg | B29: Open | C29: Rembauville Paul | D29: 300 | E29: 2025 Malaga (Sp) | F29: Sahari Medhi | G29: 200 | H29: 2022 Albi (fr) | I29: Bouchou Yanis | J29: 340 | K29: 2024 Birmingham (UK) | L29: Bouchou Yanis | M29: 810 | N29: 2024 Birmingham (UK)
A30: -83kg | B30: Master1 | C30: Lenglet Florent | D30: 256 | E30: 2025 Loos (Fr) | F30: Lenglet Florent | G30: 183 | H30: 2024 Malaga (Es) | I30: Razananjariny Julien | J30: 288 | K30: 2025 Loos (Fr) | L30: Lenglet Florent | M30: 708.5 | N30: 2025 Loos (Fr)
A31: -83kg | B31: Master2 | C31: Baali Kader | D31: 235 | E31: 2018 | F31: Houas Karim | G31: 162.5 | H31: 2025 Loos (Fr) | I31: Baali Kader | J31: 265 | K31: 2018 | L31: Baali Kader | M31: 650 | N31: 2018
A32: -83kg | B32: Master3 | C32: Taupe Laurent | D32: 212.5 | E32: 2025 Albi (Fr) | F32: Taupe Laurent | G32: 143 | H32: 2025 Loos (Fr) | I32: Richard Jacques | J32: 252.5 | K32: 2015 | L32: Taupe Laurent | M32: 587.5 | N32: 2025 Albi (Fr)
A33: -83kg | B33: Master4 | C33: Vinot Jean Francois | D33: 171 | E33: 2021 Beuzeville (fr) | F33: Naty Michel | G33: 120.5 | H33: 2025 (Fr) | I33: Richard Jacques | J33: 230 | K33: 2019 | L33: Vinot Jean Francois | M33: 476 | N33: 2021 Beuzeville (fr)
A34: -93kg | B34: Subjunior | C34: Bernoussi Triolet Malik | D34: 282 | E34: 2022 Istanbul (Tu) | F34: Bernoussi Triolet Malik | G34: 210 | H34: 2022 Skierniewice (Pol) | I34: Galhaut Samuel | J34: 320.5 | K34: 2024 Pilsen (Cze) | L34: Bernoussi Triolet Malik | M34: 800.5 | N34: 2022 Skierniewice (Pol)
A35: -93kg | B35: Junior | C35: Castillo Paco | D35: 307.5 | E35: 2025 Villenave d'Ornon (Fr) | F35: Bernoussi Triolet Malik | G35: 228 | H35: 2025 Villenave d'Ornon (Fr) | I35: Jean Marie Flore Guillaume | J35: 340 | K35: 2023 Le Crès (Fr) | L35: Bernoussi Triolet Malik | M35: 840.5 | N35: 2025 Villenave d'Ornon (Fr)
A36: -93kg | B36: Open | C36: Baiden Richmond | D36: 310 | E36: 2025 Malaga (Sp) | F36: Bernoussi Triolet Malik | G36: 228 | H36: 2025 Villenave d'Ornon (Fr) | I36: Jean Marie Flore Guillaume | J36: 360 | K36: 2025 Chemnitz (Ger) | L36: Baiden Richmond | M36: 850 | N36: 2025 Malaga (Sp)
A37: -93kg | B37: Master1 | C37: Hupfer Sebastien | D37: 290 | E37: 2024 Le Crés (Fr) | F37: Idier Julien | G37: 186 | H37: 2025 Loos (Fr) | I37: Raymond Axel | J37: 295 | K37: 2024 Sun City (SA) | L37: Raymond Axel | M37: 742.5 | N37: 2024 Malaga (Es)
A38: -93kg | B38: Master2 | C38: Houbre Fabrice | D38: 262.5 | E38: 2025 Albi (Fr) | F38: Bertin Fabrice | G38: 170.5 | H38: 2022 Beuzeville (F) | I38: Houbre Fabrice | J38: 270 | K38: 2025 Albi (Fr) | L38: Houbre Fabrice | M38: 690 | N38: 2025 Albi (Fr)
A39: -93kg | B39: Master3 | C39: Mauchosse Eric | D39: 245 | E39: 2019 | F39: Courtehoux Pierre | G39: 150 | H39: 2017 | I39: Mauchosse Eric | J39: 270 | K39: 2018 | L39: Mauchosse Eric | M39: 635 | N39: 2019
A40: -93kg | B40: Master4 | C40: Buchs Christian | D40: 192.5 | E40: 2017 | F40: Mandou Eugene | G40: 112.5 | H40: 2016 | I40: Buchs Christian | J40: 222.5 | K40: 2019 | L40: Buchs Christian | M40: 517.5 | N40: 2019
A41: -105kg | B41: Subjunior | C41: Clement Corentin | D41: 292.5 | E41: 2018 | F41: Clement Corentin | G41: 184.5 | H41: 2018 | I41: Clement Corentin | J41: 324 | K41: 2018 | L41: Clement Corentin | M41: 796 | N41: 2018
A42: -105kg | B42: Junior | C42: Clement Corentin | D42: 332.5 | E42: 2022 Skierniewice (Pol) | F42: Clement Corentin | G42: 210 | H42: 2021 Port la Nouvelle(fr) | I42: Clement Corentin | J42: 365 | K42: 2021 Halmstad (sw) | L42: Clement Corentin | M42: 895 | N42: 2021 Halmstad (sw)
A43: -105kg | B43: Open | C43: Clement Corentin | D43: 332.5 | E43: 2022 Skierniewice (Pol) | F43: Tchandeu Noundou Eliam | G43: 215.5 | H43: 2024 Le Crés (Fr) | I43: Clement Corentin | J43: 375 | K43: 2025 Malaga (Sp) | L43: Clement Corentin | M43: 920 | N43: 2025 Malaga (Sp)
A44: -105kg | B44: Master1 | C44: Nudant Xavier | D44: 260 | E44: 2024 Blanquefort (F) | F44: Bouteiller Marc | G44: 200 | H44: 2017 | I44: Nudant Xavier | J44: 305 | K44: 2025 Cape Town (SA) | L44: Nudant Xavier | M44: 745 | N44: 2025 Cape Town (SA)
A45: -105kg | B45: Master2 | C45: Bahria Imad | D45: 263 | E45: 2025 Loos (Fr) | F45: Boyer Roland | G45: 157.5 | H45: 2024 Blanquefort (F) | I45: Boyer Roland | J45: 300 | K45: 2025 Loos (Fr | L45: Boyer Roland | M45: 705 | N45: 2025 Loos(Fr)
A46: -105kg | B46: Master3 | C46: Sicoli Adalgisio | D46: 235 | E46: 2025 Albi (Fr) | F46: Merlier Pascal | G46: 152.5 | H46: 2019 | I46: Maes Patrick | J46: 260.5 | K46: 2021 Beuzeville (fr) | L46: Sicoli Adalgisio | M46: 602.5 | N46: 2025 Albi (Fr)
A47: -105kg | B47: Master4 | C47: Buchs Christian | D47: 213 | E47: 2018 | F47: Di Vuolo Guy | G47: 120 | H47: 2016 | I47: Buchs Christian | J47: 242.5 | K47: 2017 | L47: Buchs Christian | M47: 563 | N47: 2018
A48: -120kg | B48: Subjunior | C48: Le Turc Quentin | D48: 260 | E48: 2024 Villepinte (Fr) | F48: Le Turc Quentin | G48: 145 | H48: 2024 Villepinte (Fr) | I48: Le Turc Quentin | J48: 245 | K48: 2024 villepinte (Fr) | L48: Le Turc Quentin | M48: 650 | N48: 2024 Villepinte (Fr)
A49: -120kg | B49: Junior | C49: Clement Corentin | D49: 330 | E49: 2019 | F49: Peyraud Nicolas | G49: 215 | H49: 2022 Istanbul (Tu) | I49: Peyraud Nicolas | J49: 355 | K49: 2022 Skierniewice (Pol) | L49: Peyraud Nicolas | M49: 895 | N49: 2022 Skierniewice (Pol)
A50: -120kg | B50: Open | C50: Peyraud Nicolas | D50: 343 | E50: 2024 Le Crés (Fr) | F50: Vincent Benjy | G50: 225.5 | H50: 2024 Le Crés (Fr) | I50: Peyraud Nicolas | J50: 380 | K50: 2025 Malaga (Sp) | L50: Peyraud Nicolas | M50: 935.5 | N50: 2024 Le Crés (Fr)
A51: -120kg | B51: Master1 | C51: Lazare Jacky | D51: 275 | E51: 2023 Le Puy en Velay (Fr) | F51: Bonnay Dimitri | G51: 220 | H51: 2022 Beuzeville (F) | I51: Loubidika Regis | J51: 297.5 | K51: 2022 Beuzeville (F) | L51: Lazare Jacky | M51: 735 | N51: 2023 Le Puy en Velay (Fr)
A52: -120kg | B52: Master2 | C52: Spitz Frederic | D52: 257.5 | E52: 2025 Albi (Fr) | F52: Minelle Jean Yves | G52: 195 | H52: 2016 | I52: Hocquard Richard | J52: 280 | K52: 2018 | L52: Hocquard Richard | M52: 700 | N52: 2018
A53: -120kg | B53: Master3 | C53: Sicoli Adalgisio | D53: 232.5 | E53: 2022 Beuzeville (F) | F53: Billon Thierry | G53: 160 | H53: 2021 Beuzeville (fr) | I53: Pinat Jean Claude | J53: 260 | K53: 2025 Albi (Fr) | L53: Pinat Jean Claude | M53: 612.5 | N53: 2025 Loos (Fr)
A54: -120kg | B54: Master4 | C54: Belmas Jean Paul | D54: 201 | E54: 2020 Albi (Fr) | F54: Belmas Jean Paul | G54: 105 | H54: 2020 Albi (Fr) | I54: Belmas Jean Paul | J54: 200 | K54: 2020 Albi (Fr) | L54: Belmas Jean Paul | M54: 506 | N54: 2020 Albi (Fr)
A55: +120kg | B55: Subjunior | C55: Bogey Malone | D55: 235 | E55: 2018 | F55: Bogey Malone | G55: 155 | H55: 2018 | I55: Berdoll Antoine | J55: 260 | K55: Villenave d'Ornon (Fr) | L55: Bogey Malone | M55: 635 | N55: 2018
A56: +120kg | B56: Junior | C56: Clement Corentin | D56: 335 | E56: 2019 Barcelone (esp) | F56: Bekkhaled Mehdi | G56: 210.5 | H56: 2025 Villenave d'Ornon (Fr) | I56: Clement Corentin | J56: 325 | K56: 2019 Barcelone (esp) | L56: Clement Corentin | M56: 870 | N56: 2019 Barcelone (esp)
A57: +120kg | B57: Open | C57: Odin Stanley | D57: 385 | E57: 2024 Le Crés (Fr) | F57: Masse Romuald | G57: 257.5 | H57: 2021 Port la Nouvelle(fr) | I57: Odin Stanley | J57: 385 | K57: 2023 Tartu (Est) | L57: Odin Stanley | M57: 990 | N57: 2023 Tartu (Est)
A58: +120kg | B58: Master1 | C58: Bonin Eric | D58: 275 | E58: 2018 | F58: Bonin Eric | G58: 210 | H58: 2018 | I58: Bonin Eric | J58: 278 | K58: 2018 | L58: Bonin Eric | M58: 755 | N58: 2018
A59: +120kg | B59: Master2 | C59: Cottret David | D59: 226.5 | E59: 2025 Loos (Fr) | F59: Chard Tony | G59: 180 | H59: 2018 | I59: Chard Tony | J59: 292.5 | K59: 2018 | L59: Chard Tony | M59: 687.5 | N59: 2018
A60: +120kg | B60: Master3 | F60: Sanchez Jean Francois | G60: 125 | H60: 2015 | I60: Sanchez Jean Francois | J60: 180 | K60: 2015
A61: +120kg | B61: Master4

Sheet Records PL_F
A1: Records PL Femmes
A2: Catégorie | C2: Squat | F2: Développé-Couché | I2: Soulevé de Terre | L2: TOTAL
C3: Athlète | D3: Poids | E3: Date | F3: Athlète | G3: Poids | H3: Date | I3: Athlète | J3: Poids | K3: Date | L3: Athlète | M3: Poids | N3: Date
A4: -47kg | B4: Open | C4: Legard Stephanie | D4: 167.5 | E4: 2021 Stavanger (No) | F4: Le Panse Benedicte | G4: 97.5 | H4: 2013 | I4: Legard Stephanie | J4: 165 | K4: 2022 Birmingham (US) | L4: Legard Stephanie | M4: 427.5 | N4: 2021 Stavanger ( No)
A5: -47kg | B5: Master1 | C5: Legard Stephanie | D5: 167.5 | E5: 2021 Stavanger (No) | F5: Legard Stephanie | G5: 97.5 | H5: 2021 Stavanger (No) | I5: Legard Stephanie | J5: 165 | K5: 2022 Birmingham (US) | L5: Legard Stephanie | M5: 427.5 | N5: 2021 Stavanger ( No)
A6: -47kg | B6: Master2 | C6: Feraud Nathalie | D6: 132.5 | E6: 2018 | F6: Feraud Nathalie | G6: 90 | H6: 2018 | I6: Feraud Nathalie | J6: 140 | K6: 2018 | L6: Feraud Nathalie | M6: 362.5 | N6: 2018
A7: -47kg | B7: Master3
A8: -47kg | B8: Master4
A9: -52kg | B9: Open | C9: Martin Vanessa | D9: 175 | E9: 2016 | F9: Martin Vanessa | G9: 102.5 | H9: 2015 | I9: Martin Vanessa | J9: 165 | K9: 2016 | L9: Martin Vanessa | M9: 440 | N9: 2016
A10: -52kg | B10: Master1 | C10: Martin Vanessa | D10: 175 | E10: 2016 | F10: Martin Vanessa | G10: 100 | H10: 2016 | I10: Martin Vanessa | J10: 165 | K10: 2016 | L10: Martin Vanessa | M10: 440 | N10: 2016
A11: -52kg | B11: Master2 | C11: Feraud Nathalie | D11: 142.5 | E11: 2020 Pontoise (Fr) | F11: Feraud Nathalie | G11: 98 | H11: 2019 Potchefstroom(za) | I11: Feraud Nathalie | J11: 147.5 | K11: 2019 Potchefstroom(za) | L11: Feraud Nathalie | M11: 383 | N11: 2019 Potchefstroom(za)
A12: -52kg | B12: Master3 | C12: Malicot Maryse | D12: 95 | E12: 2015 | F12: Jallais Marie Therese | G12: 57.5 | H12: 2017 | I12: Malicot Maryse | J12: 105 | K12: 2014 | L12: Malicot Maryse | M12: 245 | N12: 2015
A13: -52kg | B13: Master4 | C13: Malicot Maryse | D13: 92.5 | E13: 2016 | F13: Malicot Maryse | G13: 47.5 | H13: 2016 | I13: Malicot Maryse | J13: 100 | K13: 2016 | L13: Malicot Maryse | M13: 230 | N13: 2016
A14: -57kg | B14: Open | C14: Sune Caroline | D14: 195 | E14: 2021 Pilsen (c r) | F14: Anthouard Melodie | G14: 137.5 | H14: 2022 Pilsen (Rc) | I14: Sune Caroline | J14: 180 | K14: 2021 Pilsen (Rc) | L14: Anthouard Melodie | M14: 487.5 | N14: 2022 Pilsen (Rc)
A15: -57kg | B15: Master1 | C15: Mingot Sylvie | D15: 150 | E15: 2012 | F15: Mingot Sylvie | G15: 115 | H15: 2012 | I15: Le Blevenec Nina | J15: 158 | K15: 2017 | L15: Mingot Sylvie | M15: 410 | N15: 2012
A16: -57kg | B16: Master2 | C16: Cabos Marie France | D16: 140 | E16: 2018 | F16: Cabos Marie France | G16: 92.5 | H16: 2018 | I16: Guennec Edith | J16: 155 | K16: 2014 | L16: Cabos Marie France | M16: 377.5 | N16: 2018
A17: -57kg | B17: Master3 | C17: Grouet Lydie | D17: 115 | E17: 2020 Pontoise (Fr) | F17: Grouet Lydie | G17: 75 | H17: 2020 Pontoise (Fr) | I17: Guennec Edith | J17: 170 | K17: 2017 | L17: Guennec Edith | M17: 337.5 | N17: 2016
A18: -57kg | B18: Master4 | C18: Malicot Maryse | D18: 92.5 | E18: 2019 Potchefstroom(za) | F18: Malicot Maryse | G18: 50 | H18: 2017 | I18: Malicot Maryse | J18: 100 | K18: 2017 | L18: Malicot Maryse | M18: 242.5 | N18: 2017
A19: -63kg | B19: Open | C19: Sun Caroline | D19: 210 | E19: 2023 Druskininkai (Lit) | F19: Anthouard Melodie | G19: 147.5 | H19: 2022 Birmingham (US) | I19: Sune Caroline | J19: 182.5 | K19: 2023 Druskininkai (Lit) | L19: Sun Caroline | M19: 512.5 | N19: 2023 Druskininkai (Lit)
A20: -63kg | B20: Master1 | C20: Baali Isabelle | D20: 165 | E20: 2013 | F20: Iliev Isabelle | G20: 120 | H20: 2013 | I20: Iliev Isabelle | J20: 170 | K20: 2013 | L20: Iliev Isabelle | M20: 445 | N20: 2013
A21: -63kg | B21: Master2 | C21: Descourt Veronique | D21: 131 | E21: 2021 Blanquefort (F) | F21: Cabos Marie France | G21: 95 | H21: 2020 Pontoise (Fr) | I21: Descourt Veronique | J21: 148 | K21: 2021 Blanquefort (F) | L21: Descourt Veronique | M21: 369 | N21: 2021 Blanquefort (F)
A22: -63kg | B22: Master3 | C22: Calves Françoise | D22: 115 | E22: 2017 | F22: Calves Françoise | G22: 65 | H22: 2017 | I22: Calves Françoise | J22: 127.5 | K22: 2017 | L22: Calves Françoise | M22: 307.5 | N22: 2017
A23: -63kg | B23: Master4
A24: -69kg | B24: Open
A25: -69kg | B25: Master1
A26: -69kg | B26: Master2 | C26: Leccese Florence | D26: 147.5 | E26: 2023 Pilsen (Cz) | F26: Leccese Florence | G26: 92.5 | H26: 2023 Pilsen (Cz) | I26: Descours Veronique | J26: 145 | K26: 2023 Bordeaux (Fr) | L26: Descourt Veronique | M26: 372.5 | N26: 2023 Bordeaux (Fr)
A27: -69kg | B27: Master3 | C27: Blondan Daisy | D27: 107.5 | E27: 2021 Pilsen (c r) | F27: Blondan Daisy | G27: 75 | H27: 2021 Pilsen (c r) | I27: Blondan Daisy | J27: 135 | K27: 2021 Pilsen (c r) | L27: Blondan Daisy | M27: 317.5 | N27: 2021 Pilsen (c r)
A28: -69kg | B28: Master4
A29: -76kg | B29: Open
A30: -76kg | B30: Master1
A31: -76kg | B31: Master2
A32: -76kg | B32: Master3
A33: -76kg | B33: Master4
A34: -84kg | B34: Open | C34: Chavanis Virginie | D34: 180 | E34: 2014 | F34: Chavanis Virginie | G34: 107.5 | H34: 2014 | I34: Chavanis Virginie | J34: 170 | K34: 2014 | L34: Chavanis Virginie | M34: 457.5 | N34: 2014
A35: -84kg | B35: Master1 | C35: Maubert Cecile | D35: 157.5 | E35: 2014 | F35: Benlabili Sylvie | G35: 80 | H35: 2018 | I35: Maubert Cecile | J35: 165 | K35: 2014 | L35: Maubert Cecile | M35: 402.5 | N35: 2014
A36: -84kg | B36: Master2
A37: -84kg | B37: Master3
A38: -84kg | B38: Master4
A39: +84kg | B39: Open
A40: +84kg | B40: Master1
A41: +84kg | B41: Master2
A42: +84kg | B42: Master3
A43: +84kg | B43: Master4

Sheet Records PL_H
A1: Records PL Hommes
A2: Catégorie | C2: Squat | F2: Développé-Couché | I2: Soulevé de Terre | L2: TOTAL
C3: Athlète | D3: Poids | E3: Date | F3: Athlète | G3: Poids | H3: Date | I3: Athlète | J3: Poids | K3: Date | L3: Athlète | M3: Poids | N3: Date
A4: -59kg | B4: Open | C4: Lited Etienne | D4: 242.5 | E4: 2011 | F4: Tinebra Frederic | G4: 152.5 | H4: 2012 | I4: Lited Etienne | J4: 247.5 | K4: 2012 | L4: Lited Etienne | M4: 632.5 | N4: 2012
A5: -59kg | B5: Master1 | C5: Angin Benoit | D5: 140 | E5: 2019 Potchefstroom(za) | F5: Angin Benoit | G5: 90 | H5: 2019 Potchefstroom(za) | I5: Angin Benoit | J5: 140 | K5: 2019 Potchefstroom(za) | L5: Angin Benoit | M5: 370 | N5: 2019 Potchefstroom(za)
A6: -59kg | B6: Master2 | C6: Legard Patrick | D6: 205 | E6: 2013 | I6: Legard Patrick | J6: 182.5 | K6: 2013 | L6: Legard Patrick | M6: 470 | N6: 2013
A7: -59kg | B7: Master3 | C7: Nivault Marcel | D7: 145 | E7: 2013 | I7: Nivault Marcel | J7: 180 | K7: 2012
A8: -59kg | B8: Master4 | C8: Nivault Marcel | D8: 135.5 | E8: 2016 | I8: Nivault Marcel | J8: 171.5 | K8: 2016 | L8: Nivault Marcel | M8: 353.5 | N8: 2014
A9: -66kg | B9: Open | C9: El Belghitti Hassan | D9: 295 | E9: 2012 | F9: Bernard Michael | G9: 195 | H9: 2018 Potchefstroom(za) | I9: El Belghitti Hassan | J9: 318.5 | K9: 2022 Viborg (Den) | L9: El Belghitti Hassan | M9: 783.5 | N9: 2022 Viborg (den)
A10: -66kg | B10: Master1 | C10: El Belghitti Hassan | D10: 295 | E10: 2019 | F10: Bernard Michael | G10: 195 | H10: 2019 Potchefstroom(za) | I10: El Belghitti Hassan | J10: 318.5 | K10: 2022 Viborg (Den) | L10: El Belghitti Hassan | M10: 783.5 | N10: 2022 Viborg (den)
A11: -66kg | B11: Master2 | C11: Bernard Michael | D11: 217.5 | E11: 2020 Pontoise (Fr) | F11: Bernard Michael | G11: 190 | H11: 2020 Pontoise (Fr) | I11: Jouveaux Franck | J11: 235 | K11: 2022 La Gorgue (F) | L11: Bernard Michael | M11: 602.5 | N11: 2020 Pontoise (Fr)
A12: -66kg | B12: Master3 | C12: Cuvelier Alain | D12: 182.5 | E12: 2013 | F12: Chenais Jean Jacques | G12: 115.5 | H12: 2014 | I12: Cuvelier Alain | J12: 210 | K12: 2013 | L12: Cuvelier Alain | M12: 505 | N12: 2013
A13: -66kg | B13: Master4 | I13: Nivault Marcel | J13: 160 | K13: 2018
A14: -74kg | B14: Open | C14: El Belghitti Hassan | D14: 320.5 | E14: 2013 | F14: Poinson Adrien | G14: 245 | H14: 2014 | I14: El Belghiti Hassan | J14: 325 | K14: 2015 | L14: El Belghiti Hassan | M14: 808 | N14: 2013
A15: -74kg | B15: Master1 | C15: El Belghitti Hassan | D15: 305 | E15: 2016 | F15: Baali Kader | G15: 197.5 | H15: 2014 | I15: El Belghiti Hassan | J15: 325 | K15: 2015 | L15: El Belghiti Hassan | M15: 797.5 | N15: 2015
A16: -74kg | B16: Master2 | C16: Ruffault Michel | D16: 240 | E16: 2014 | F16: Bernard Michael | G16: 200 | H16: 2022 Aulnat (Fr) | I16: Ruffault Michel | J16: 278 | K16: 2015 | L16: Ruffault Michel | M16: 645.5 | N16: 2014
A17: -74kg | B17: Master3 | C17: Couturier Claude | D17: 215 | E17: 2016 | F17: Couturier Claude | G17: 137.5 | H17: 2014 | I17: Vinot Jean Francois | J17: 237.5 | K17: 2011 | L17: Couturier Claude | M17: 552.5 | N17: 2015
A18: -74kg | B18: Master4 | C18: Couturier Claude | D18: 185 | E18: 2022 La Gorgue (F) | F18: Couturier Claude | G18: 117.5 | H18: 2022 La Gorgue (F) | I18: Dufour Gerard | J18: 200 | K18: 2021 Blanquefort (F) | L18: Couturier Claude | M18: 482.5 | N18: 2022 La Gorgue (F)
A19: -83kg | B19: Open | C19: Picot Geraud Romain | D19: 322.5 | E19: 2014 | F19: Bertin Fabrice | G19: 225 | H19: 2018 | I19: Picot Geraud Romain | J19: 312.5 | K19: 2014 | L19: Picot Geraud Romain | M19: 840 | N19: 2014
A20: -83kg | B20: Master1 | C20: Gandner Frederic | D20: 300 | E20: 2013 | F20: Bertin Fabrice | G20: 197.5 | H20: 2014 | I20: Gandner Frederic | J20: 295 | K20: 2014 | L20: Gandner Frederic | M20: 785 | N20: 2014
A21: -83kg | B21: Master2 | C21: Bertin Fabrice | D21: 257.5 | E21: 2018 | F21: Bertin Fabrice | G21: 225 | H21: 2018 | I21: Carlot Dominique | J21: 265 | K21: 2013 | L21: Bertin Fabrice | M21: 688.5 | N21: 2018
A22: -83kg | B22: Master3 | C22: Richard Jacques | D22: 220 | E22: 2013 | F22: Naty Michel | G22: 145 | H22: 2019 | I22: Richard Jacques | J22: 260 | K22: 2013 | L22: Richard Jacques | M22: 570 | N22: 2013
A23: -83kg | B23: Master4 | C23: Vinot Jean Francois | D23: 160 | E23: 2021 Blanquefort (F) | F23: Dufour Gerard | G23: 105 | H23: 2022 La Gorgue (F) | I23: Dufour Gerard | J23: 180 | K23: 2022 La Gorgue (F) | L23: Dufour Gerard | M23: 420 | N23: 2022 La Gorgue (F)
A24: -93kg | B24: Open | C24: Carole Benoit | D24: 330 | E24: 2014 | F24: Grenier Allan | G24: 255 | H24: 2013 | I24: Pinheiro Gilles | J24: 325 | K24: 2012 | L24: Pinheiro Gilles | M24: 875 | N24: 2014
A25: -93kg | B25: Master1 | C25: Vaillant Cyril | D25: 303 | E25: 2020 Pontoise (Fr) | F25: Pires Daniel | G25: 220 | H25: 2015 | I25: Bonnel Olivier | J25: 290 | K25: 2016 | L25: Vaillant Cyril | M25: 785 | N25: 2019
A26: -93kg | B26: Master2 | C26: Mauchosse Eric | D26: 290 | E26: 2013 | F26: Boughamdouz Gemel | G26: 217.5 | H26: 2017 | I26: Mauchosse Eric | J26: 275 | K26: 2013 | L26: Mauchosse Eric | M26: 755 | N26: 2013
A27: -93kg | B27: Master3 | C27: Mokadem Boucif | D27: 252.5 | E27: 2011 | F27: Mokadem Boucif | G27: 160 | H27: 2012 | I27: Mokadem Boucif | J27: 255 | K27: 2013 | L27: Mokadem Boucif | M27: 665 | N27: 2012
A28: -93kg | B28: Master4
A29: -105kg | B29: Open | C29: Belkesir Sofiane | D29: 392.5 | E29: 2017 | F29: Grenier Allan | G29: 315 | H29: 2019 | I29: Belkesir Sofiane | J29: 360 | K29: 2014 | L29: Belkesir Sofiane | M29: 1020 | N29: 2017
A30: -105kg | B30: Master1 | C30: Buttigieg Frederic | D30: 320 | E30: 2012 | F30: Buttigieg Frederic | G30: 250 | H30: 2012 | I30: Buttigieg Frederic | J30: 290 | K30: 2012 | L30: Buttigieg Frederic | M30: 860 | N30: 2012
A31: -105kg | B31: Master2 | C31: Sicoli Adalgiso | D31: 312.5 | E31: 2014 | F31: Leroy Fabrice | G31: 235 | H31: 2017 | I31: Mercier Charly | J31: 275.5 | K31: 2023 Bordeaux (Fr) | L31: Sicoli Adalgiso | M31: 757.5 | N31: 2014
A32: -105kg | B32: Master3 | C32: Delpieu Christian | D32: 250 | E32: 2013 | F32: Merlier Pascal | G32: 165 | H32: 2019 | I32: Delpieu Christian | J32: 250 | K32: 2013 | L32: Delpieu Christian | M32: 635 | N32: 2013
A33: -105kg | B33: Master4 | C33: Buchs Christian | D33: 235 | E33: 2017 | F33: Buchs Christian | G33: 125 | H33: 2017 | I33: Buchs Christian | J33: 235 | K33: 2017 | L33: Buchs Christian | M33: 595 | N33: 2017
A34: -120kg | B34: Open | C34: Belkesir Sofiane | D34: 427.5 | E34: 2023 Druskininkai (Lit) | F34: Grenier Allan | G34: 320 | H34: 2021 Stavanger (No) | I34: Belkesir Sofiane | J34: 365 | K34: 2023 Druskininkai (Lit) | L34: Belkesir Sofiane | M34: 1090 | N34: 2023 Druskininkai (Lit)
A35: -120kg | B35: Master1 | F35: Riviere Patrick | G35: 230 | H35: 2014 | I35: Mlodziakoski David | J35: 302.5 | K35: 2014
A36: -120kg | B36: Master2 | C36: Hocquard Richard | D36: 285.5 | E36: 2019 | F36: Bar Eric | G36: 197.5 | H36: 2021 Blanquefort (F) | I36: Hocquard Richard | J36: 267.5 | K36: 2018 | L36: Hocquard Richard | M36: 733 | N36: 2019
A37: -120kg | B37: Master3 | C37: Sanou Abdoulaye | D37: 265 | E37: 2014 | F37: Merlier Pascal | G37: 195 | H37: 2020 Pontoise (Fr) | I37: Merlier Pascal | J37: 230 | K37: 2020 Pontoise (Fr) | L37: Merlier Pascal | M37: 665 | N37: 2020 Pontoise (Fr)
A38: -120kg | B38: Master4
A39: +120kg | B39: Open | C39: Masarotti Ugo | D39: 300 | E39: 2020 Pontoise (Fr) | F39: Lejeune Aurelien | G39: 295 | H39: 2013 | I39: Masaroti Ugo | J39: 310.5 | K39: 2020 Pontoise (Fr) | L39: Lejeune Aurelien | M39: 945 | N39: 2013
A40: +120kg | B40: Master1 | F40: Bar Eric | G40: 210 | H40: 2014 | L40: Paulet Yann | M40: 790 | N40: 2015
A41: +120kg | B41: Master2 | C41: Chard Tony | D41: 235 | E41: 2020 Pontoise (Fr) | F41: Chard Tony | G41: 215 | H41: 2018 | I41: Chard Tony | J41: 305 | K41: 2019 | L41: Chard Tony | M41: 757.5 | N41: 2018
A42: +120kg | B42: Master3
A43: +120kg | B43: Master4

Sheet Aide
A1: Symptome | B1: Message d'erreur | C1: Question ? | D1: Action corrective
A2: Feuille fédération ne se génére pas | B2: Cette action ne marche pas sur de multiples sélections | C2: N'auriez vous pas fusionner des cellules ? Par exemple, le titre de la compétition ? | D2: Défusionner les cellules que vous avez fusionnées
A3: Ordre barre ne fonctionne pas | B3: Selection non valide | C3: Avez-vous bien séléctionné une valeur de barre et non pas le chiffre (1,2 ou 3) en dessous du mouvement | D3: Avez-vous bien séléctionné une valeur de barre et non pas le chiffre (1,2 ou 3) en dessous du mouvement | F3: Enlever la protection: Fichier + Informations + voir ci-dessous
A4: Ordre barre ne fonctionne pas | B4: Cellules fusionnées .. | C4: Avez-vous bien gardé 21 lignes (par exemple 15 athlètes + 6 lignes vides) | D4: Avez-vous bien gardé 21 lignes (par exemple 15 athlètes + 6 lignes) avant d'avoir les lignes des arbitres
A5: La catégorie de poids ne s'affiche pas | B5: Vide | C5: N'avez-vous pas vidé le contenu de la cellule. Toutes les cases grises contiennent une formule | D5: Recopier une cellule de categorie de poids avec la formule encore présente
A6: La catégorie de poids ne s'affiche pas | B6: Vide | C6: La formule est bien là mais rien ne se passe. | D6: Faite "Entrée" sur votre clavier ou mieux aller dans l'onglet "Formule" de Excel puis options de calcul + automatique
A7: La catégorie d'age ne s'affiche pas | B7: Vide | C7: N'avez-vous pas vidé le contenu de la cellule. Toutes les cases grises contiennent une formule | D7: Recopier une cellule de categorie d'age avec la formule encore présente
A8: La catégorie d'age ne s'affiche pas | B8: Vide | C8: La formule est bien là mais rien ne se passe. | D8: Faite "Entrée" sur votre clavier ou mieux aller dans l'onglet "Formule" de Excel puis options de calcul + automatique
A9: pour toutes les cellules grisées | B9: Vide | C9: N'avez-vous pas vidé le contenu de la cellule. Toutes les cases grises contiennent une formule | D9: Recopier une cellule identique avec la formule encore présente
A10: pour toutes les cellules grisées | B10: Vide | C10: La formule est bien là mais rien ne se passe. | D10: Faite "Entrée" sur votre clavier ou mieux aller dans l'onglet "Formule" de Excel puis options de calcul + automatique
A11: Les colonnes avec formules sont protégées | B11: pas de sélection possible | C11: La protection est voulue pour éviter les ecrassements lors des copier/coller des cellules avec formules | D11: Vous pouvez deproteger la feuille FA en allant dans Fichier/Informations/Oter la protection sur FA (pas de mot de passe)
A12: Pas possible d'ajouter ou detruire une ligne | B12: pas de sélection possible | C12: La protection est voulue pour éviter la destruction puis l'ajout de lignes pas au format
A13: Enlever un athlète | B13: pas possible de detruire la ligne | C13: Comment enlever un athlète ? | D13: 2 options: enlever la protection et détruire la ligne ou sélectionner les cellules et avec le menu contextuel "Effacer le contenu"
